{"text_format":"1","workbook":"xlsx","n_sheets":24,"sheets":["Cover Page","Facility Info","Contents","Operational Data","Operational Summary","Perf. Form 1","Energy Form 1","Permit Compliance","Improvements","Public Liasion","CO2 N2O","Residue Quality ","Water","Air (periodic)","Air (CEMS)","HCl","SO2","NOx","TOC","Particulates","CO 0.5 hourly","CO 95% 10 min","NH3","Template changes log"],"not_rendered":{"charts":8,"images":4,"macros":1,"external_links":0,"defined_names":24,"comments":0,"pivot_tables":0},"unopened":[],"bounds":{"document_bytes":16777216,"sheet_cells":100000,"rows_first":2000,"rows_last":500,"rows_between":2000,"halvings":0,"cell_chars":16384,"cell_head_chars":4096},"cells_cut":0,"cells_raw":0,"read":"whole","date_system":"1900"}

{"sheet":"Cover Page","index":0,"n_rows":53,"n_cols":14,"rows_kept":53,"cut":false,"hidden":false,"merged":[[48,2,48,3],[48,6,48,8],[52,2,52,3],[36,1,36,8],[40,2,40,8],[42,2,42,4],[44,2,44,4],[46,2,46,3],[46,6,46,8],[13,13,18,15],[34,1,34,8],[0,3,5,6],[7,1,23,8],[28,1,28,8],[30,1,30,8],[32,1,32,8]]}
[null,null,null,{"$error":"#VALUE!"}]
[null,null,null,null,null,null,null,null,null,null,null,null,null,"Version 24.2a (for incinerators) - 27/11/24"]
[]
[null,null,null,null,null,null,null,null,null,null,null,null,null,"Note that there is another version of this template available for co-incinerators"]
[]
[]
[]
[null,{"$error":"#VALUE!"}]
[]
[]
[]
[]
[null,null,null,null,null,null,null,null,null,null,null,null,null,"Notes:"]
[null,null,null,null,null,null,null,null,null,null,null,null,null,"This template may require adjustments by individual operators to meet specific reporting requirements as defined in the site Permit(s)"]
[]
[]
[]
[]
[]
[]
[]
[]
[]
[]
[]
[]
[]
[]
[null,"Annual Performance Report 2024"]
[]
[null,"Permit EPR/BT7116IW"]
[]
[null,"Lakeside EFW Ltd"]
[]
[]
[]
[null,"Lakeside"]
[]
[null,"Year:",2024]
[]
[null,"Address:","Lakeside EFW Ltd, Lakeside Road, Conlbrook, SL3 0FE"]
[]
[null,"Tel: ","01753 688430"]
[]
[null,"Email: ","martin.rogers@lakesideefw.co.uk"]
[]
[null,"Prepared by:","Martin Rogers",null,null,"Position:","EHS Manager"]
[]
[null,"Approved by:","Danny Coulston",null,null,"Position:","Director of Operations"]
[]
[null,"Version:",1]
[]
[null,"Issue Date:","2025-01-24"]

{"sheet":"Facility Info","index":1,"n_rows":22,"n_cols":11,"rows_kept":22,"cut":false,"hidden":false,"merged":[[4,0,17,8],[21,0,53,8],[4,10,13,13],[21,10,30,13]]}
[{"$f":"+'Cover Page'!$B$29","v":"Annual Performance Report 2024"},null,null,null,{"$f":"+'Cover Page'!$B$33","v":"Lakeside EFW Ltd"}]
[]
["Plant Description and Design",null,null,null,null,null,null,null,null,null,"Notes:"]
[]
["Lakeside Energy from Waste (EfW)\n\nA joint venture project between two of the UK’s leading recycling and waste management companies; Grundon Waste Management and Viridor.\n\nThe Lakeside EfW facility at Colnbrook near Slough has been operational since 2010. Using advanced technology, this plant is capable of processessing over 450,000 tonnes of residual waste per year, generating 37MW of power – enough to provide electricity to every household in Slough (56,000 homes).\n\nThere is an education centre adjacent to Lakeside EfW, where schools and other groups can learn about sustainable waste management and energy from waste.\n",null,null,null,null,null,null,null,null,null,"Include summary of plant design, design capacity, no. of combustion lines, electrical and heat capacity and any other general information that describes the facility, its location and purpose "]
[]
[]
[]
[]
[]
[]
[]
[]
[]
[]
[]
[]
[]
[]
["Summary of Operational Processes and Procedures"]
[]
["Lakeside operate an Integrated Management System (IMS) that is ISO 14001, ISO 45001, ISO 9001, ISO 22301 and ISO 50001 certified. It includes all the procedures for receiving and inspecting waste, auditing suppliers to ensure waste quality and compliance. Operations includes procedures for running the plant, showing how to start a line, run a line and shutdown a line. EHS includes procedures for monitoring and reporting compliance. Maintenance includes all the procedures for planned maintenance, unplanned maintenance, outages and preventative maintenance.",null,null,null,null,null,null,null,null,null,"Include summary of key processes and procedures such as (but not limited to); waste reception, control rooms, grate, bed and boiler, energy & heat  generation, cooling systems, residue management, emission controls, health and safety systems, maintenance"]

{"sheet":"Contents","index":2,"n_rows":45,"n_cols":11,"rows_kept":45,"cut":false,"hidden":false,"merged":[[44,0,47,9],[37,1,37,6],[38,1,38,6],[39,1,39,6],[40,1,40,6],[41,1,41,6],[42,1,42,6],[36,1,36,6],[22,1,22,6],[23,1,23,6],[24,1,24,6],[27,1,27,6],[28,1,28,6],[29,1,29,6],[30,1,30,6],[31,1,31,6],[32,1,32,6],[35,1,35,6],[21,1,21,6],[9,1,9,6],[10,1,10,6],[11,1,11,6],[13,1,13,6],[14,1,14,6],[15,1,15,6],[16,1,16,6],[17,1,17,6],[18,1,18,6],[19,1,19,6],[20,1,20,6],[12,1,12,6],[4,10,7,14],[8,1,8,6],[3,1,3,6],[4,1,4,6],[5,1,5,6],[6,1,6,6],[7,1,7,6]]}
[{"$f":"+'Cover Page'!$B$29","v":"Annual Performance Report 2024"},null,null,null,{"$f":"+'Cover Page'!$B$33","v":"Lakeside EFW Ltd"}]
[]
["Contents",null,null,null,null,null,null,null,null,null,"Notes:"]
["Section","Subject",null,null,null,null,null,"Page ",null,null,"Section references and Page nos. to be inserted"]
[null,"Facility Information",null,null,null,null,null,2,null,null,"Sections and Subjects may require adjustment by individual operators to meet specific reporting requirements as defined in the sites Permit(s)"]
[null,"Operational Data",null,null,null,null,null,4]
[null,"Operational Summary",null,null,null,null,null,"5,6"]
[null,"Performance Form 1",null,null,null,null,null,7]
[null,"Energy Form 1",null,null,null,null,null,8]
[null,"Permit Compliance",null,null,null,null,null,9]
[null,"Improvements",null,null,null,null,null,10]
[null,"Public Liaison",null,null,null,null,null,11]
[null,"Carbon dioxide and nitrous oxide emissions",null,null,null,null,null,12]
[null,"Residue Quality ",null,null,null,null,null,13]
[null,"Emissions to Water",null,null,null,null,null,14]
[null,"Emissions to Air (periodically monitored)",null,null,null,null,null,15]
[null,"Emissions to Air (continuously monitored)",null,null,null,null,null,16]
[null,"Hydrogen Chloride emissions",null,null,null,null,null,17]
[null,"Sulphur Dioxide emissions",null,null,null,null,null,18]
[null,"Oxides of Nitrogen emissions",null,null,null,null,null,19]
[null,"Total Organic Carbon emissions",null,null,null,null,null,20]
[null,"Particulate Matter emissions",null,null,null,null,null,21]
[null,"Carbon Monoxide emissions",null,null,null,null,null,23]
[null,"Ammonia emissions",null,null,null,null,null,24]
[]
[]
["Version Control"]
["Section","Information",null,null,null,null,null,"Date"]
[]
[]
[]
[]
[]
[]
["Distribution"]
["Copy","Name, Role",null,null,null,null,null,"No."]
[]
[]
[]
[]
[]
[]
[]
[]
["This report is required under the Industrial Emissions Directive’s Article 55(2) requirements on reporting and public information on waste incineration plants and co-incineration plants, which require the operator to produce an annual report on the functioning and monitoring of the plant and make it available to the public. "]

{"sheet":"Operational Data","index":3,"n_rows":65,"n_cols":10,"rows_kept":65,"cut":false,"hidden":false,"merged":[[5,9,7,9],[52,0,56,0],[33,1,38,1],[3,1,3,2],[7,1,19,1],[23,1,26,1],[28,1,29,1],[9,9,20,9],[21,9,25,9]]}
[{"$f":"+'Cover Page'!$B$29","v":"Annual Performance Report 2024"},null,null,null,{"$f":"+'Cover Page'!$B$33","v":"Lakeside EFW Ltd"}]
[]
["Operational Data"]
["Plant Size",468280,null,"tonnes pa",null,"MWth",null,"MWe",null,"Notes:"]
["No. of combustion lines",2,null,"No. of Turbines:",null,1,null,null,null,"* - RDF to include SRF "]
[null,null,null,null,null,null,null,null,null,"** - Combusted tonnage = tonnes delivered in period + (tonnes in bunker at start of period – tonnes in bunker at end of period), or equivalent calculation depending on plant type"]
["Waste types received","Unit","Q1","Q2","Q3","Q4","Year Total","%"]
["Household / Local Authority","tonnes",66473,62891,46780,66602,{"$f":"SUM(C8:F8)","v":242746},{"$f":"IF(G8>0,G8/$G$18,\"-\")","v":0.60000098868939333}]
["Commercial & Industrial ",null,39397,36383,25329,39015,{"$f":"SUM(C9:F9)","v":140124},0.34634778138100136,null,"*** - CHP plants only"]
["Hazardous ",null,972,948,773,1105,3798,9.3876057897650869E-3,null,"**** Availability Definition: 'the availability of a line is to be calculated by the number of hours the line reported Continuously Monitored emission levels to the Regulator through the calendar year divided by the total number of hours in that year. \n\nThe overall plant availability is calculated as the Mean of all lines in the plant. For clarity this includes periods of abnormal operation.'  \n\nRationale: The primary function of an Energy from Waste facility is the disposal of waste. It follows therefore that the availability of a plant is determined by the period of time a facility spends undertaking this activity."]
["Clinical",null,3946,4597,5084,4281,17908,4.4263624139840231E-2]
["Waste wood (biomass) ",null,null,null,null,null,0,"-"]
["Refuse Derived Fuel * - H'hold/LA",null,null,null,null,null,{"$f":"SUM(C13:F13)","v":0},"-"]
["Refuse Derived Fuel *  - C&I",null,null,null,null,null,0,"-"]
["Other [Please specify]",null,null,null,null,null,0,"-"]
["Other [Please specify]",null,null,null,null,null,0,"-"]
["Other [Please specify]",null,null,null,null,null,0,"-"]
["Total waste received",null,{"$f":"SUM(C8:C17)","v":110788},{"$f":"SUM(D8:D17)","v":104819},{"$f":"SUM(E8:E17)","v":77966},{"$f":"SUM(F8:F17)","v":111003},404576]
["Rejected Waste ",null,null,null,null,4.12,{"$f":"SUM(C19:F19)","v":4.12},{"$f":"IF(G19>0,G19/$G$18,\"-\")","v":1.0183500751403939E-5}]
["Unprocessed waste transferred out",null,null,null,null,null,{"$f":"SUM(C20:F20)","v":0},{"$f":"IF(G20>0,G20/$G$18,\"-\")","v":"-"}]
["Total waste combusted **",null,109778,102586,75829,111121,{"$f":"SUM(C21:F21)","v":399314}]
[null,null,null,null,null,null,null,null,null,"Password for protected cells\nA password has been set to prevent accidental  editing of cells with formulae. \nIf you still need to make an edit for some reason then the password = 1234"]
["Energy Usage / Export","Unit","Q1","Q2","Q3","Q4","Year Total","KWh/te"]
["Power Generated","MWh",80791,73456,54776,79976,{"$f":"SUM(C24:F24)","v":288999},{"$f":"IF(G24>0,G24*1000/$G$21,\"-\")","v":723.73871189089289}]
["Power Exported",null,73176,65977,48931,72212,{"$f":"SUM(C25:F25)","v":260296},{"$f":"IF(G25>0,G25*1000/$G$21,\"-\")","v":651.85793636085884}]
["Power Used on site",null,7615,7479,5845,7764,{"$f":"SUM(C26:F26)","v":28703},{"$f":"IF(G26>0,G26*1000/$G$21,\"-\")","v":71.880775530034015}]
["Power Imported",null,null,null,null,null,0,{"$f":"IF(G27>0,G27*1000/$G$21,\"-\")","v":"-"}]
["Parasitic Load","%",{"$f":"IF(C24>0,1-C25/(C24+C27),\"-\")","v":9.4255548266514833E-2},{"$f":"IF(D24>0,1-D25/(D24+D27),\"-\")","v":0.10181605314746245},{"$f":"IF(E24>0,1-E25/(E24+E27),\"-\")","v":0.10670731707317072},{"$f":"IF(F24>0,1-F25/(F24+F27),\"-\")","v":9.7079123737121131E-2},{"$f":"IF(G24>0,1-G25/(G24+G27),\"-\")","v":9.9318682763608224E-2}]
["Thermal Energy Produced ***","MWh",null,null,null,null,{"$f":"SUM(C29:F29)","v":0},{"$f":"IF(G29>0,G29*1000/$G$21,\"-\")","v":"-"}]
["Thermal Energy Exported ***",null,null,null,null,null,0,{"$f":"IF(G30>0,G30*1000/$G$21,\"-\")","v":"-"}]
["R1 value (if applicable)","R1"]
[]
["Waste Disposal & Recovery","Unit","Q1","Q2","Q3","Q4","Year Total","% inputs"]
["APC Residues - produced","tonnes",3228,2993,2532,3354,{"$f":"SUM(C34:F34)","v":12107},{"$f":"IF(G34>0,G34/$G$21,\"-\")","v":3.0319497938965326E-2}]
["IBA - produced",null,20211,19430.739999999998,14514.82,20334.7,74491.259999999995,{"$f":"IF(G35>0,G35/$G$21,\"-\")","v":0.18654807995712647}]
["Metals recycling",null,1202,1101,858,1102,{"$f":"SUM(C36:F36)","v":4263},1.0675809012456362E-2]
["Other",null,0,0,0,0,{"$f":"SUM(C37:F37)","v":0},"-"]
["Other",null,0,0,0,0,0,"-"]
["Other",null,0,0,0,0,0,"-"]
[]
["Raw Material Usage","Unit","Q1","Q2","Q3","Q4","Year Total","kg or Ltr /te"]
["Mains Water","ltrs",20284,22213,16706,20650,{"$f":"SUM(C42:F42)","v":79853},{"$f":"IF(G42>0,G42/$G$21,\"-\")","v":0.19997545791031618}]
["Other Water","ltrs",null,null,null,null,0,{"$f":"IF(G43>0,G43/$G$21,\"-\")","v":"-"}]
["Ammonia","kgs",60454,null,null,null,60454,0.15139464181070536]
["Urea","kgs",null,92827,30104,8362,{"$f":"SUM(C45:F45)","v":131293},0.32879638580164983]
["Activated Carbon","kgs",44192,42569,33280,45972,166013,0.41574550353856865]
["Lime / hydrated lime","kgs",1349056,1211001,956198,1332305,4848560,12.142223914012531]
["Fuel oil","ltrs",53205,126861,92066,21847,293979,0.73621010032205236]
["Gas","cuf",null,null,null,null,0]
["Other",null,null,null,null,null,0]
[]
["Summary ","Line/Unit","Q1","Q2","Q3","Q4","Year Total",null,"Hrs in year "]
["Availability of waste combustion by line, hrs ****",1,2072,2118,1519,2187,{"$f":"SUM(C53:F53)","v":7896},{"$f":"+G53/$I$53","v":0.89890710382513661},8784,"Change this figure to 8784 in a leap year"]
[null,2,2184,1963,1545,2168,7860,{"$f":"+G54/$I$53","v":0.89480874316939896}]
[null,3,null,null,null,null,0,0]
[null,4,null,null,null,null,0,0]
[null,5,null,null,null,null,{"$f":"SUM(C57:F57)","v":0},0]
["Overall Availability, mean avg. of all lines, hrs",null,null,null,null,null,{"$f":"AVERAGE(G53:G57)","v":3151.2},0.3587431693989071]
["Hours of turbine operations, hrs",1,2184,2184,2157,2102,8627,0.98212659380692169]
["Hours of turbine operations, hrs",2,null,null,null,null,0,0]
["Hours of heat / steam export",null,null,null,null,null,0,{"$f":"IF(B61>0,G60/I53,\"n/a\")","v":"n/a"}]
["Net Calorific Value of waste","MJ/kg"]
["Abnormal Events","qty.",1,null,2,null,3,{"$f":"IF(G63>0,\"yes\",\"no\")","v":"yes"}]
["Abnormal operation","hours",1,null,null,null,1,{"$f":"+(G64)/I53","v":1.1384335154826958E-4}]
["Permit Breaches","qty.",7,1,2,1,11,{"$f":"IF(G65>0,\"yes\",\"no\")","v":"yes"}]

{"sheet":"Operational Summary","index":4,"n_rows":47,"n_cols":11,"rows_kept":47,"cut":false,"hidden":false,"merged":[[49,1,49,8],[34,10,44,13],[43,1,43,8],[39,1,39,8],[35,1,35,8],[36,1,36,8],[37,1,37,8],[38,1,38,8],[48,1,48,8],[44,1,44,8],[45,1,45,8],[46,1,46,8],[47,1,47,8],[40,1,40,8],[41,1,41,8],[42,1,42,8],[4,0,21,8],[25,0,31,8],[4,10,13,13],[25,10,31,13],[34,1,34,8],[33,1,33,8]]}
[{"$f":"+'Cover Page'!$B$29","v":"Annual Performance Report 2024"},null,null,null,{"$f":"+'Cover Page'!$B$33","v":"Lakeside EFW Ltd"}]
[]
["Summary of Plant Operations and Maintenance during the reporting year",null,null,null,null,null,null,null,null,null,"Notes:"]
[]
["A1 achieved 89.9% availability, A2 89.5 % and the steam turbine 98.2 %. A1 was shutdown in August for its 18 month outage and the 2nd superheater was replaced. A2 was shutdown in September and its 2nd superheater was also replaced. \nLakeside installed a new NOx control system on both lines. The system injects urea at three different levels of the furnace and is designed to inject at the optimum temperature. The system was commissioned in the 4th quarter and has been running well.\nNew invertors for the induced draft fans were installed during the August and September outages. These are quoted as being 3.6 % more energy efficient.",null,null,null,null,null,null,null,null,null,"Include summary of key operational and/or maintenance activity undertaken in the year, such as any major component upgrades and/or replacements "]
[]
[]
[]
[]
[]
[]
[]
[]
[]
[]
[]
[]
[]
[]
[]
[]
[]
[]
["Summary of Residue Handling for the reporting year"]
[]
["Material and disposal point listed below.\nIBA sampling follows the ESA protocol.Material sent to:\nDays aggregates, Transport Avenue, Brentford, TW8 9HF.\nAPC sample quarterly sent to:\nOCO Technology, Central Avenue, Hallen, Suffolk, IP27 0AX\nOversize/ metals\nM D J Light Brothers, Greystone quarry top yard, Southerham, Lewes, East Sussex, BN8 6JN",null,null,null,null,null,null,null,null,null,"Include in here a summary of residue handling regimes and destinations "]
[]
[]
[]
[]
[]
[]
[]
[{"$f":"+'Cover Page'!C39","v":2024},"Plant shut-downs"]
["Date","Reason for shut-down",null,null,null,null,null,null,null,null,"Provide a very brief reason for plant shut-down e.g. \"Shut-down prior to major outage\"; \"Emergency shut-down due to boiler tube leak\"\n\nThere is no need to include periods of hot-standby here (e.g. to clear feed chute hopper blockages).\n\nFor clinical waste incinerators which require regular shut-downs for boiler cleaning, there is no need to record these here. "]
["2024-01-21","A1 Tube leak, off for 109 hours."]
["2024-04-01","A1 Tube leak, off for 66 hours."]
["2024-04-07","A2 Tube leak, off for 109 hours."]
["2024-06-12","A2 water wall leak, off for 112 hours."]
["2024-07-21","Trip both lines due to 132 kV breaker fault. A1 13.1, A2 71 & turbine 49 hours."]
["2024-08-05","A1 outage starts 676 hours"]
["2024-09-05","A2 outage starts 592 hours"]
["2024-10-14","Slag chute blockage 10 hours"]
["2024-10-24","NID tripped on rotation sensor 27 Hours"]
["2024-11-16","Turbine shutdown for 1st bearing replacement, 67 hours."]
["2024-12-10","Turbine trip due to governor bearing fault, 39 hours."]
["2024-12-11","A1 and A2 tripped due to condensate fluctuations, A1 10 hours A2 13 hours."]

{"sheet":"Perf. Form 1","index":5,"n_rows":54,"n_cols":10,"rows_kept":54,"cut":false,"hidden":false,"merged":[[47,0,47,1],[49,0,49,9],[50,0,51,9],[38,0,38,9],[39,0,40,9],[43,0,43,1],[43,2,43,9],[45,0,45,1],[46,0,46,1],[36,0,36,3],[36,4,36,5],[36,7,36,8],[37,0,37,3],[37,4,37,5],[37,7,37,8],[34,0,34,3],[34,4,34,5],[34,7,34,8],[35,0,35,3],[35,4,35,5],[35,7,35,8],[31,0,31,3],[31,7,31,8],[32,0,32,3],[32,4,32,5],[32,7,32,8],[33,0,33,3],[33,4,33,5],[33,7,33,8],[23,0,23,3],[23,4,23,5],[23,6,23,7],[23,8,23,9],[25,0,25,9],[26,0,28,9],[21,0,21,1],[21,2,21,3],[21,4,21,5],[21,6,21,7],[21,8,21,9],[22,0,22,3],[22,4,22,5],[22,6,22,7],[22,8,22,9],[19,0,19,1],[19,2,19,3],[19,4,19,5],[19,6,19,7],[19,8,19,9],[20,0,20,1],[20,2,20,3],[20,4,20,5],[20,6,20,7],[20,8,20,9],[17,0,17,1],[17,2,17,3],[17,4,17,5],[17,6,17,7],[17,8,17,9],[18,0,18,1],[18,2,18,3],[18,4,18,5],[18,6,18,7],[18,8,18,9],[15,0,15,1],[15,2,15,3],[15,4,15,5],[15,6,15,7],[15,8,15,9],[16,0,16,9],[13,0,13,1],[13,2,13,3],[13,4,13,5],[13,6,13,7],[13,8,13,9],[14,0,14,3],[14,4,14,5],[14,6,14,7],[14,8,14,9],[11,0,11,1],[11,2,11,3],[11,4,11,5],[11,6,11,7],[11,8,11,9],[12,0,12,1],[12,2,12,3],[12,4,12,5],[12,6,12,7],[12,8,12,9],[9,0,9,9],[10,0,10,1],[10,2,10,3],[10,4,10,5],[10,6,10,7],[10,8,10,9],[2,0,2,4],[2,6,2,8],[3,1,3,4],[5,3,5,4],[5,6,5,7],[8,0,8,1],[8,2,8,3],[8,4,8,5],[8,6,8,7],[8,8,8,9]]}
[{"$f":"+'Cover Page'!C39","v":2024}," Annual Reporting Performance Form 1"]
[]
[{"$f":"+'Cover Page'!B31","v":"Permit EPR/BT7116IW"},null,null,null,null,"Operator: ",{"$f":"+'Cover Page'!B37","v":"Lakeside"}]
["Facility:",{"$f":"+'Cover Page'!B33:I33","v":"Lakeside EFW Ltd"},null,null,null,"Form:","Performance 1"]
[]
["Reporting  Period from: ",null,null,"2024-01-01",null,"to:","2024-12-31"]
[]
[{"$f":"+A1","v":2024},"Annual Reporting of Waste Disposal and Recovery"]
["Waste Description",null,"Disposal Route(s)",null,"Disposal Tonnes",null,"Recovery Tonnes",null,"% / tonne of waste incinerated"]
["1) Hazardous Wastes"]
["APC Residues",null,"R05",null,null,null,12106.6,null,{"$f":"IF((E11+G11)>0,(E11+G11)/'Operational Data'!$G$21, \"-\")","v":3.0318496221019047E-2}]
["IBA",null,null,null,null,null,null,null,{"$f":"IF((E12+G12)>0,(E12+G12)/'Operational Data'!$G$21, \"-\")","v":"-"}]
[null,null,null,null,null,null,null,null,{"$f":"IF((E13+G13)>0,(E13+G13)/'Operational Data'!$G$21, \"-\")","v":"-"}]
[null,null,null,null,null,null,null,null,{"$f":"IF((E14+G14)>0,(E14+G14)/'Operational Data'!$G$21, \"-\")","v":"-"}]
["Total Hazardous Waste",null,null,null,{"$f":"SUM(E11:F14)","v":0},null,{"$f":"SUM(G11:H14)","v":12106.6},null,{"$f":"IF((E15+G15)>0,(E15+G15)/'Operational Data'!$G$21, \"-\")","v":3.0318496221019047E-2}]
[]
["2) Non-Hazardous Wastes"]
["IBA",null,"R11",null,null,null,74491.5,null,{"$f":"IF((E18+G18)>0,(E18+G18)/'Operational Data'!$G$21, \"-\")","v":0.18654868098789423}]
["Ferrous Metal",null,"R04",null,null,null,4263.46,null,{"$f":"IF((E19+G19)>0,(E19+G19)/'Operational Data'!$G$21, \"-\")","v":1.0676960988094583E-2}]
["Process Water",null,null,null,null,null,null,null,{"$f":"IF((E20+G20)>0,(E20+G20)/'Operational Data'!$G$21, \"-\")","v":"-"}]
[null,null,null,null,null,null,null,null,{"$f":"IF((E21+G21)>0,(E21+G21)/'Operational Data'!$G$21, \"-\")","v":"-"}]
[null,null,null,null,null,null,null,null,{"$f":"IF((E22+G22)>0,(E22+G22)/'Operational Data'!$G$21, \"-\")","v":"-"}]
["Total Non-Hazardous Waste",null,null,null,{"$f":"SUM(E18:F22)","v":0},null,{"$f":"SUM(G18:H22)","v":78754.960000000006},null,{"$f":"IF((E23+G23)>0,(E23+G23)/'Operational Data'!$G$21, \"-\")","v":0.19722564197598882}]
["TOTAL WASTE",null,null,null,{"$f":"+E23+E15","v":0},null,{"$f":"+G23+G15","v":90861.560000000012},null,{"$f":"IF((E24+G24)>0,(E24+G24)/'Operational Data'!$G$21, \"-\")","v":0.22754413819700789}]
[]
["Operator’s comments :"]
[]
[]
[]
[]
[{"$f":"+A1","v":2024},"Annual Reporting of Water and Other Raw Material Usage"]
["Raw Material",null,null,null,"Usage",null,"Unit","Specific Usage",null,"Unit"]
["Mains Water",null,null,null,{"$f":"+'Operational Data'!G42/1000","v":79.852999999999994},null,"m3",{"$f":"IF(E33>0,E33/'Operational Data'!$G$21,\"-\")","v":1.9997545791031619E-4},null,"m3/te"]
["Total Water",null,null,null,{"$f":"+'Operational Data'!G43+'Operational Data'!G42/1000","v":79.852999999999994},null,"m3",{"$f":"IF(E34>0,E34/'Operational Data'!$G$21,\"-\")","v":1.9997545791031619E-4},null,"m3/te"]
["Urea / Ammonia",null,null,null,{"$f":"+'Operational Data'!G44","v":60454},null,"kg",{"$f":"IF(E35>0,E35/'Operational Data'!$G$21,\"-\")","v":0.15139464181070536},null,"kg/te"]
["Activated Carbon",null,null,null,{"$f":"+'Operational Data'!G46","v":166013},null,"kg",{"$f":"IF(E36>0,E36/'Operational Data'!$G$21,\"-\")","v":0.41574550353856865},null,"kg/te"]
["Lime / hydrated lime / Sodium Bicarb.",null,null,null,{"$f":"+'Operational Data'!G47","v":4848560},null,"kg",{"$f":"IF(E37>0,E37/'Operational Data'!$G$21,\"-\")","v":12.142223914012531},null,"kg/te"]
[]
["Operator’s comments :"]
[]
[]
[]
[{"$f":"+A31","v":2024},"Annual Reporting of other performance indicators "]
["Parameter",null,"Results by Line"]
[null,null,"A1","A2","A3","A4","A5",null,"Turbine 1","Turbine 2"]
["Operating hours for the year, hours",null,7896,7860]
["Number of periods of abnormal operation, qty."]
["Cumulative hours of abnormal operation for this year, hours"]
[]
["Operator’s comments :"]
[]
[]
[]
["Signed: ",null,null,null,null,null,"Date:"]

{"sheet":"Energy Form 1","index":6,"n_rows":29,"n_cols":8,"rows_kept":29,"cut":false,"hidden":false,"merged":[[15,0,15,2],[15,3,15,4],[15,6,15,8],[17,0,17,8],[18,0,24,8],[13,0,13,2],[13,3,13,4],[13,6,13,8],[14,0,14,2],[14,3,14,4],[14,6,14,8],[11,0,11,2],[11,3,11,4],[11,6,11,8],[12,0,12,2],[12,3,12,4],[12,6,12,8],[9,0,9,2],[9,3,9,4],[9,6,9,8],[10,0,10,2],[10,3,10,4],[10,6,10,8],[2,6,2,8],[4,1,4,4],[6,3,6,4],[6,6,6,7],[8,0,8,2],[8,3,8,4],[8,6,8,8]]}
[{"$f":"+'Cover Page'!C39","v":2024}," Annual Reporting of Energy Usage/Export"]
[]
[{"$f":"+'Cover Page'!B31","v":"Permit EPR/BT7116IW"},null,null,null,null,"Operator: ",{"$f":"+'Cover Page'!B37","v":"Lakeside"}]
[]
["Facility:",{"$f":"+'Cover Page'!B33:I33","v":"Lakeside EFW Ltd"},null,null,null,"Form:","Energy 1"]
[]
["Reporting  Period from: ",null,null,{"$f":"+'Perf. Form 1'!D6:E6","v":"2024-01-01"},null,"to:",{"$f":"+'Perf. Form 1'!G6:H6","v":"2024-12-31"}]
[]
["Energy Source",null,null,"Energy Usage",null,"Unit","Specific Usage (KWh/tonne incinerated"]
["Electricity Produced",null,null,{"$f":"+'Operational Data'!G24","v":288999},null,"MWh",{"$f":"+'Operational Data'!H24","v":723.73871189089289}]
["Electricity Imported   ",null,null,442,null,"MWh",{"$f":"+'Operational Data'!H27","v":"-"}]
["Electricity Exported",null,null,{"$f":"+'Operational Data'!G25","v":260296},null,"MWh",{"$f":"+'Operational Data'!H25","v":651.85793636085884}]
["Gas Oil",null,null,293979,null,"Litres"]
["Steam/hot water exported",null,null,{"$f":"+'Operational Data'!G30","v":0},null,"GWh",{"$f":"+'Operational Data'!H30","v":"-"}]
[]
[]
[]
["Operator’s comments :"]
[]
[]
[]
[]
[]
[]
[]
[]
[]
[]
["Signed: ",null,null,null,null,null,"Date:","2025-01-20"]

{"sheet":"Permit Compliance","index":7,"n_rows":38,"n_cols":12,"rows_kept":38,"cut":false,"hidden":false,"merged":[[24,1,24,2],[25,1,25,2],[26,1,26,2],[27,1,27,2],[28,1,28,2],[33,3,33,5],[29,1,29,2],[30,1,30,2],[32,1,32,2],[33,1,33,2],[31,1,31,2],[38,1,38,3],[38,4,38,6],[38,7,38,9],[22,1,22,2],[23,1,23,2],[34,1,34,2],[35,0,35,8],[22,3,22,5],[23,3,23,5],[31,3,31,5],[34,3,34,5],[24,3,24,5],[25,3,25,5],[26,3,26,5],[27,3,27,5],[28,3,28,5],[8,11,20,11],[36,0,36,10],[18,0,18,10],[37,1,37,3],[37,4,37,6],[37,7,37,9],[14,0,14,1],[14,2,14,4],[19,7,19,8],[19,1,19,2],[19,3,19,5],[21,3,21,5],[21,1,21,2],[29,3,29,5],[30,3,30,5],[32,3,32,5],[39,1,39,3],[39,4,39,6],[39,7,39,9],[40,1,40,3],[40,4,40,6],[40,7,40,9],[14,5,14,8],[15,0,15,1],[16,2,16,4],[16,5,16,8],[15,2,15,4],[15,5,15,8],[16,0,16,1],[13,0,13,1],[13,2,13,4],[13,5,13,8],[7,0,7,1],[7,2,7,8],[8,0,8,1],[8,2,8,4],[8,5,8,8],[11,0,11,1],[11,2,11,4],[11,5,11,8],[12,0,12,1],[12,2,12,4],[12,5,12,8],[9,0,9,1],[9,2,9,4],[9,5,9,8],[10,0,10,1],[10,2,10,4],[10,5,10,8]]}
[{"$f":"+'Cover Page'!$B$29","v":"Annual Performance Report 2024"},null,null,null,{"$f":"+'Cover Page'!$B$33","v":"Lakeside EFW Ltd"}]
[]
["Summary of Permit Compliance"]
[]
["Compliance with permit limits for continuously monitored pollutants"]
[]
["The plant met its emission limits as shown in the table below:"]
["Substance",null,"Percentage time compliant during operationNote 1",null,null,null,null,null,null,null,null,"Notes:"]
[null,null,"Half-hourly limit",null,null,"Daily limit",null,null,null,null,null,"Note 1: Please report to 2 decimal places, i.e. xx.xx%\n\nNote 2: Please enter into this table any permit non-compliances that the EA has given a CCS score for. Please also enter any other non-compliances which you have notified to the EA (e.g. ELV exceedances) but which have not yet been assessed by the EA. There is no need to enter any notifications which were subsequently assessed by the EA not to be permit breaches.  \n\nNote 3: Please enter information here (rather than just referencing the notifications that were sent to the EA) including where relevant the incineration line reference, pollutant and value of the measured result for any ELV exceedances.   \n\n"]
["Particulates",null,1,null,null,0.99399999999999999]
["Oxides of nitrogen",null,1,null,null,0.98399999999999999]
["Sulphur dioxide",null,1,null,null,1]
["Carbon monoxide",null,"100 % 95% of 10-min averages",null,null,1]
["Total organic carbon",null,1,null,null,1]
["Hydrogen chloride",null,1,null,null,1]
["Hydrogen fluoride",null,1,null,null,1]
[null,null,"xx.xx %",null,null,"xx.xx %"]
[]
["Summary of non-compliances under the permit Note 2"]
["Date","Summary of non-compliance Note 3",null,"Reason ",null,null,"Measures taken to prevent reoccurrence","CCS score if applicable*"]
[null,null,null,null,null,null,null,"Impact","Root cause"]
["2024-02-08","SO2 752.04 mg/m3 1/2 Hourly",null,"Feed of shredded material",null,null,"Waste source stopped"]
["2024-02-13","Particulate 47.03, 44.84 mg/m3",null,"Bag failure",null,null,"Bags capped"]
["2024-03-12","NOx 180.94 mg/m3 Daily average",null,"New limit difficult to achieve",null,null,"New plant install","E1","C3"]
["2024-03-13","NOx 180.77 mg/m3 Daily average",null,"New limit difficult to achieve",null,null,"New plant install","E1","C3"]
["2024-03-14","NOx 201.61 mg/m3 Daily average",null,"New limit difficult to achieve",null,null,"New plant install","E1","C3"]
["2024-03-15","NOx 181.32 mg/m3 Daily average",null,"New limit difficult to achieve",null,null,"New plant install","E1","C3"]
["2024-03-30","NOx 188.5 mg/m3 Daily average",null,"New limit difficult to achieve",null,null,"New plant install","E1","C3"]
["2024-04-06","NOx 189.41 mg/m3 Daily average",null,"New limit difficult to achieve",null,null,"New plant install","E1","C3"]
["2024-04-30","CO 364.34 mg/m3 10 Min",null,"High CV waste and cylinder explosions",null,null,"Air increased","E1","C4"]
["2024-07-24","VOC 34.6, 26.74 mg/m3 1/2 Hourly",null,"SSE plant trip slow start up",null,null,"Sorbent sequence started","E1","C4"]
["2024-09-28","Particulate 5.02 mg/m3 Daily avg",null,"Bag failure",null,null,"Bag capped","E1","C4"]
["2024-09-29","Particulate 6.05 mg/m3 Daily avg",null,"Bag failure",null,null,"Bag capped","E1","C4"]
["2024-09-30","CO 10 Min avg 154.5 - 594.92 7 spikes",null,"High CV waste and cylinder explosions",null,null,"Air increased","E1","C4"]
["2024-10-16","SO2 220.21 mg/m3 1/2 Hourly",null,"Dampers in manual",null,null,"Dampers calibrated","N/A","N/A"]
["*If the Environment Agency (EA) has given a Compliance Classification Scheme (CCS) score due to a permit non-compliance it should be entered here (CCS4 = No impact; CCS3 = Minor impact; CCS2 = Significant impact; CCS1 = Major impact). If the EA has not yet assessed a non-compliance which you have notified to them, these columns should be left blank. Enter N/A if no score was given for the root cause.  "]
["Summary of any complaints received and actions to taken to resolve them."]
["Date","Summary of complaint [including Line/Reference]",null,null,"Reason (including whether substantiated by the operator or the EA)",null,null,"Measures taken to prevent reoccurrence"]

{"sheet":"Improvements","index":8,"n_rows":39,"n_cols":5,"rows_kept":39,"cut":false,"hidden":false,"merged":[[37,0,37,8],[38,0,47,8],[4,0,4,8],[5,0,13,8],[15,0,15,8],[16,0,24,8],[26,0,26,8],[27,0,35,8]]}
[{"$f":"+'Cover Page'!$B$29","v":"Annual Performance Report 2024"},null,null,null,{"$f":"+'Cover Page'!$B$33","v":"Lakeside EFW Ltd"}]
[]
["Summary of Plant Improvements"]
[]
["Summary of any efficiency improvements that have been completed within the year."]
["New inverters were installed for the induced draft (I.D.) fans quoted to be 3.6 % more energy efficient.\nSuperheater 2 was replaced after exceeding the end of its useful life."]
[]
[]
[]
[]
[]
[]
[]
[]
[]
["Summary of any permit improvement conditions that have been completed within the year and the resulting environmental benefits."]
["With the introduction of the new permit limits on Nox, dropping from 200 mg/m3 to 180 mg/m3, Lakeside \ninstalled a new system on each line, designed to switch the injection position to the ideal position in the\nfurnace to achieve an optimal reaction. Due to the temperatures that the furnaces operate at, the decision \nwas taken to replace ammonia with urea, which reacts at a higher temperature. The system is now fully installed and is working as expected. Reagent use is optimised and NOx is easily achieving the lower emission limit."]
[]
[]
[]
[]
[]
[]
[]
[]
[]
["Summary of any changes to the plant or operating techniques which required a variation to the permit and a summary of the resulting environmental impact."]
["No permit variations."]
[]
[]
[]
[]
[]
[]
[]
[]
[]
["Summary of any other improvements made to the plant or planned to be made and a summary of the resulting environmental benefits."]
["Inverters will be replaced on some of the larger pumps and equipment with expected energy savings. C14 \nanalysers have been installed on each line to measure the biogenic content of the flue gas, to calculate the biogenic Carbon in the waste incinerated."]

{"sheet":"Public Liasion","index":9,"n_rows":29,"n_cols":5,"rows_kept":29,"cut":false,"hidden":false,"merged":[[23,0,24,1],[23,2,24,8],[25,0,26,1],[25,2,26,8],[28,0,28,8],[17,0,18,1],[17,2,18,8],[19,0,20,1],[19,2,20,8],[21,0,22,1],[21,2,22,8],[16,0,16,1],[16,2,16,8],[5,0,5,1],[5,2,5,8],[6,0,7,1],[6,2,7,8],[8,0,9,1],[8,2,9,8],[10,0,11,1],[10,2,11,8],[12,0,13,1],[12,2,13,8],[15,0,15,8]]}
[{"$f":"+'Cover Page'!$B$29","v":"Annual Performance Report 2024"},null,null,null,{"$f":"+'Cover Page'!$B$33","v":"Lakeside EFW Ltd"}]
[]
["Details of Public & Stakeholder Liaison"]
[]
["Summary of events held during the reporting year."]
["Date",null,"Description"]
[]
[]
[]
[]
[]
[]
[]
[]
[]
["List of events planned for next year"]
["Date",null,"Description"]
[]
[]
[]
[]
[]
[]
[]
[]
[]
[]
[]
["If you wish to be involved in the public liaison programme, please contact  martin.rogers_uk@lakesideefw.co.uk"]

{"sheet":"CO2 N2O","index":10,"n_rows":26,"n_cols":6,"rows_kept":26,"cut":false,"hidden":false,"merged":[[22,2,22,3],[25,1,25,3],[16,2,16,3],[4,0,4,3],[9,0,9,3],[17,0,17,3],[13,0,13,3],[12,0,12,1],[8,2,8,3],[11,2,11,3],[19,2,19,3]]}
[{"$f":"+'Cover Page'!$B$29","v":"Annual Performance Report 2024"},null,{"$f":"+'Cover Page'!$B$33","v":"Lakeside EFW Ltd"}]
[]
["Carbon dioxide emissions and biogenic content of waste inputs",null,null,null,null,"Notes:"]
[]
["Carbon dioxide emissions (all types of plant)"]
[null,"Annual mass of carbon dioxide released","tonnes ",398109]
[null,"Annual mass of carbon dioxide released per tonne of waste burned","t CO2 / t waste ",0.98399999999999999]
[null,"Annual mass of carbon dioxide released per MWh of energy exported","t CO2 / MWh export ",1.3779999999999999]
[null,"Description of how annual carbon dioxide mass emission has been calculated. \nSee Note 1","Using calibrated monitor CO2 to EN14181 and flow to BS EN 16911-2",null,null,"Note 1: All permits require operators to continuously monitor CO2 to EN14181 and flow to BS EN 16911-2 (unless otherwise agreed in writing). Operators must therefore use the results from these instruments to calculate their annual CO2 emissions. Where an operator does not have a flow meter calibrated to BS EN 16911-2, the averaged flow measurement from that year's periodic monitoring can be used instead. If the plant does not have calibrated CO2 CEMS, a suitably justified emissions factor can be used."]
["Nitrous oxide emissions (only plants which use ammonia or urea to abate NOx emissions)"]
[null,"Annual mass emissions of nitrous oxide","tonnes N2O",5.47]
[null,"Description of how annual nitrous oxide mass emission has been calculated\nSee Note 2","Using calibrated monitor CO2 to EN14181 and flow to BS EN 16911-2",null,null,"Note 2: All permits require operators to continuously monitor N2O to EN14181 and flow to BS EN 16911-2, unless otherwise agreed in writing. Operators must therefore use the results from these instruments to calculate their annual N2O emissions. Where an operator does not have a flow meter calibrated to BS EN 16911-2, the averaged flow measurement from periodic monitoring can be used instead. If the plant does not have calibrated N2O CEMS, data from periodic monitoring or a suitably justified emissions factor can be used instead."]
["Total annual carbon dioxide + nitrous oxide emissions. \nSee Note 3. ",null,"tonnes CO2e",399559,null,"Note 3: Total annual carbon dioxide and nitrous oxide emissions reported as carbon dioxide equivalent where 1 tonne nitrous oxide is equivalent to 265 tonnes carbon dioxide."]
["Biogenic CO2 emissions (See Note 4)",null,null,null,null,"Note 4: Only plants combusting residual municipal waste, refuse derived fuel or solid recovered fuel need complete this section. "]
[null,"Percentage of total carbon dioxide emissions arising from biogenic waste","%",0.58499999999999996]
[null,"No. of measurements undertaken","Number","14C from 1/10/24 to 10/12/24. 2 \nmonthly readings on each line."]
[null,"Description of how percentage biogenic carbon dioxide emissions have been measured or calculated.\nSee Note 5","C14 analysers installed on each line. Line A1 reading 55 % biogenic and line 2 reading 60 % average over a two month period.",null,null,"Note 5: The results from C14 sampling should be used if this is carried out at the plant (either via an installed sampler or from spot samples).  \nOtherwise, as an approximation (and in lieu of any more accurate metrics which may be developed in future), the measured or estimated biogenic fraction by net calorific value (see Note 6) can be assumed to be the same as the biogenic CO2 fraction of the total CO2 emissions from the plant. "]
["Biogenic fraction of waste feedstock (See Note 4)"]
[null,"Yearly average biogenic percentage of the waste by net calorific value (NCV)","%"]
[null,"Description of how biogenic percentage (by NCV) has been calculated or estimated. \nSee Note 6",null,null,null,"Note 6: If C14 sampling is carried out at the plant, the methodology set out in the embedded document entitled \"Renewable Energy Association Energy Content of Fuels - Description of Method\" embedded below can be used to calculate the biogenic percentage by net calorific value. Otherwise, data from waste sampling or BIOMA software can be used; or if none of these are available, an estimated figure with justification or a figure assumed on the basis of up-to-date industry data can be used. "]
[null,"Yearly average biogenic percentage of the waste by mass","%"]
[null,"If waste sampling undertaken, no. of samples used to ascertain average biogenic percentages above","Number"]
[null,"Description of how biogenic percentage (by mass) has been calculated or estimated. \nSee Note 7",null,null,null,"Note 7: Where available, data from waste sampling should be used; otherwise, an estimated figure with justification can be used, or a figure assumed on the basis of up-to-date industry data. "]
[]
[null,"Comments:"]
[null,"Two Amesa B analysers installed on each line to measure14C"]

{"sheet":"Residue Quality ","index":11,"n_rows":36,"n_cols":6,"rows_kept":36,"cut":false,"hidden":false,"merged":[[36,0,41,6],[32,3,32,4],[35,0,35,6],[27,0,28,1],[29,0,29,1],[30,0,30,1],[31,0,31,1],[32,0,32,1],[29,3,29,4],[30,3,30,4],[29,5,29,6],[30,5,30,6],[31,5,31,6],[32,5,32,6],[33,0,33,6],[20,0,21,1],[20,2,21,6],[22,0,23,1],[22,2,23,6],[31,3,31,4],[27,2,28,2],[28,3,28,4],[28,5,28,6],[27,3,27,6],[26,0,26,6],[5,0,6,6],[7,0,8,6],[9,0,10,6],[14,0,15,1],[14,2,15,6],[16,0,17,1],[16,2,17,6],[18,0,19,1],[18,2,19,6],[12,0,12,6],[13,0,13,1],[13,2,13,6]]}
[{"$f":"+'Cover Page'!$B$29","v":"Annual Performance Report 2024"},null,null,null,{"$f":"+'Cover Page'!$B$33","v":"Lakeside EFW Ltd"}]
[]
["Residue Quality Monitoring Requirements"]
[]
["Summary of monitoring undertaken and compliance"]
["Bottom ash follows the ESA protocol and two samples are taken every month."]
[]
["APC is sampled at the beginning of each quarter, with a composite sample for the month, made up of each load that goes out, during that month."]
[]
[]
[]
[]
["Commentary on any specific events"]
["Date & Event",null,"Description"]
["2024-09-18",null,"Ash hazardous on HP14 for high lead content. This was one sample hazardous in a rolling 24 sample analysis."]
[]
[]
[]
[]
[]
[]
[]
[]
[]
[]
[]
["Residue Quality Monitoring Results"]
["Parameter (unit) ",null,"Limit*","Normal Operation "]
[null,null,null,"Bottom ash  ",null,"APC Residues"]
["Loss on Ignition (average %)",null,"<5%",0.68]
["Total Organic Carbon (average %)",null,"<3%"]
["No. of Assessments Undertaken",null,"---",24,null,4]
["No. of Hazardous Results",null,"---",1]
["* The permit will specify a limit of either 5% loss on ignition or 3% total organic carbon. If both are measured anyway, please enter the results here, even where the limit does not apply. "]
[]
["Comments :"]

{"sheet":"Water","index":12,"n_rows":23,"n_cols":9,"rows_kept":23,"cut":false,"hidden":false,"merged":[[29,0,29,2],[29,3,29,4],[26,0,26,2],[26,3,26,4],[27,0,27,2],[27,3,27,4],[28,0,28,2],[28,3,28,4],[23,0,23,2],[23,3,23,4],[24,0,24,2],[24,3,24,4],[25,0,25,2],[25,3,25,4],[21,0,21,8],[22,0,22,2],[22,3,22,4],[14,0,15,1],[14,2,15,8],[16,0,17,1],[16,2,17,8],[18,0,19,1],[18,2,19,8],[5,0,6,8],[7,0,8,8],[9,0,10,8],[12,0,12,8],[13,0,13,1],[13,2,13,8]]}
[{"$f":"+'Cover Page'!$B$29","v":"Annual Performance Report 2024"},null,null,null,{"$f":"+'Cover Page'!$B$33","v":"Lakeside EFW Ltd"}]
[]
["Emissions to Water"]
[]
["Summary of monitoring undertaken and compliance"]
["All water generated on site is used in the process to fill riddling conveyors. Slag extractors etc. No trade \neffluent sent to foul sewer during 2024."]
[]
[]
[]
[]
[]
[]
["Commentary on any specific events"]
["Date & Event",null,"Description"]
[]
[]
[]
[]
[]
[]
[]
["Emissions to Water / Sewer"]
["Parameter",null,null,"Monitoring Frequency",null,"Limit","Target","Max.","Average"]

{"sheet":"Air (periodic)","index":13,"n_rows":39,"n_cols":11,"rows_kept":39,"cut":false,"hidden":false,"merged":[[13,10,14,12],[15,10,16,10],[15,11,16,11],[15,12,16,12],[18,3,18,4],[13,3,13,4],[14,3,14,4],[15,3,15,4],[16,3,16,4],[17,3,17,4],[21,3,21,4],[22,3,22,4],[23,3,23,4],[24,3,24,4],[31,3,31,4],[25,3,25,4],[26,3,26,4],[28,3,28,4],[38,0,38,9],[19,0,19,1],[20,0,20,1],[21,0,21,1],[34,3,34,4],[35,3,35,4],[33,0,33,1],[34,0,34,1],[35,0,35,1],[36,0,36,1],[24,0,24,1],[32,3,32,4],[27,3,27,4],[33,3,33,4],[19,3,19,4],[20,3,20,4],[39,0,40,9],[25,0,25,1],[26,0,26,1],[22,0,22,1],[23,0,23,1],[37,0,37,1],[27,0,27,1],[28,0,28,1],[29,0,29,1],[30,0,30,1],[31,0,31,1],[32,0,32,1],[37,3,37,4],[29,3,29,4],[30,3,30,4],[36,3,36,4],[16,0,16,1],[17,0,17,1],[18,0,18,1],[13,0,13,1],[14,0,14,1],[15,0,15,1],[12,0,12,1],[11,3,11,4],[12,3,12,4],[9,0,10,1],[9,5,9,9],[9,3,10,4],[9,2,10,2],[5,10,8,13],[9,10,11,13],[8,0,8,9],[5,0,6,9],[11,0,11,1]]}
[{"$f":"+'Cover Page'!$B$29","v":"Annual Performance Report 2024"},null,null,null,{"$f":"+'Cover Page'!$B$33","v":"Lakeside EFW Ltd"}]
[]
["Emissions to Air (periodically monitored)"]
[]
["Summary of monitoring undertaken, standards used and compliance",null,null,null,null,null,null,null,null,null,"Notes:"]
["HF CEN TS 17340, Cd Th & Metals BS EN 14385, Hg BS EN 13211, Dioxins/ Furans (I-TEQ) BS EN 1948 Parts 1 - 3,\nPAHs BS ISO 11338-1 and BS ISO 1138-2",null,null,null,null,null,null,null,null,null,"Template may require adjustment for any bespoke monitoring requirements of permit - please also check that all default ELV values, reference periods and the stated oxygen reference value match those for your plant, and edit if necessary!"]
[]
[]
["Results of emissions to air that are periodically monitored - oxygen reference 11% "]
["Substance",null,"Ref. Period","Emission Limit Value",null,"Average",null,null,null,null,"User to add additional tables as necessary, depending on whether quarterly or bi-annual reporting is required for the compliance year"]
[null,null,null,null,null,"A1","A2","A3","A4","A5"]
["Hydrogen fluoride",null,"1 hr","1 mg/m3",null,0.56000000000000005,0.19500000000000001]
["Cd and Tl and their compounds",null,"0.5-8hrs","0.02 mg/m3",null,1E-3,1E-3]
["Hg and its compounds",null,"0.5-8hrs","0.02 mg/m3",null,4.8999999999999998E-3,1.2999999999999999E-3]
["Sb, As, Pb, Cr, Co, Cu, Mn, Ni, V and their compounds",null,"0.5-8hrs","0.3 mg/m3",null,3.6999999999999998E-2,4.8000000000000001E-2]
["Dioxins & Furans (I-TEQ)",null,"6-8hrs","0.06 ng/m3",null,1.4E-2,0.02]
["PCBs (WHO-TEQ Humans / Mammals)",null,"6-8hrs","None set ng/m3",null,7.46E-2,2.76E-2]
["PCBs (WHO-TEQ Fish)",null,"6-8hrs","None set ng/m3",null,3.3E-3,2.3E-3]
["PCBs (WHO-TEQ Birds)",null,"6-8hrs","None set ng/m3",null,6.7599999999999993E-2,2.6599999999999999E-2]
["Dioxins & Furans (WHO-TEQ Humans / Mammals)",null,"6-8hrs","None set ng/m3",null,1.41E-2,1.8599999999999998E-2]
["Dioxins & Furans (WHO-TEQ Fish)",null,"6-8hrs","None set ng/m3",null,1.46E-2,2.0500000000000001E-2]
["Dioxins & Furans (WHO-TEQ Birds)",null,"6-8hrs","None set ng/m3",null,2.5600000000000001E-2,4.1099999999999998E-2]
["Anthanthrene",null,"6-8hrs","None set µg/m3",null,"<0.0011","<0.0013"]
["Benzo(a)anthracene",null,"6-8hrs","None set µg/m3",null,"<0.0011",0]
["Benzo(a)pyrene",null,"6-8hrs","None set µg/m3",null,"<0.0011",0]
["Benzo(b)fluoranthene",null,"6-8hrs","None set µg/m3",null,"<0.0011","<0.0013"]
["Benzo(b)naptho(2,1-d) thiophene",null,"6-8hrs","None set µg/m3",null,"<0.0011",0]
["Benzo(c)phenanthrene",null,"6-8hrs","None set µg/m3",null,"<0.0011",0]
["Benzo(ghi)perylene",null,"6-8hrs","None set µg/m3",null,"<0.0011","<0.0013"]
["Benzo(k)fluoranthene",null,"6-8hrs","None set µg/m3",null,"<0.0011","<0.0013"]
["Cholanthrene",null,"6-8hrs","None set µg/m3",null,"<0.0011","<0.0013"]
["Chrysene",null,"6-8hrs","None set µg/m3",null,"<0.0011",0.01]
["Cyclopenta(cd)pyrene",null,"6-8hrs","None set µg/m3",null,"<0.0011","<0.0013"]
["Dibenzo(ai)pyrene",null,"6-8hrs","None set µg/m3",null,"<0.0011","<0.0013"]
["Dibenzo(ah)anthracene",null,"6-8hrs","None set µg/m3",null,"<0.0011","<0.0013"]
["Fluoranthene",null,"6-8hrs","None set µg/m3",null,0.01,7.0000000000000007E-2]
["Indeno(123-cd) pyrene",null,"6-8hrs","None set µg/m3",null,"<0.0011","<0.0013"]
["Naphthalene",null,"6-8hrs","None set µg/m3",null,0.1,0.27]
["Comments :"]

{"sheet":"Air (CEMS)","index":14,"n_rows":28,"n_cols":14,"rows_kept":28,"cut":false,"hidden":false,"merged":[[28,0,29,12],[13,0,14,0],[5,0,6,12],[7,0,8,12],[10,0,10,12],[11,0,12,0],[11,2,12,2],[11,1,12,1],[11,3,11,4],[11,5,11,6],[11,7,11,8],[11,9,11,10],[11,11,11,12],[14,13,15,13],[14,14,15,14],[14,15,15,15],[12,13,13,15],[26,0,26,12]]}
[{"$f":"+'Cover Page'!$B$29","v":"Annual Performance Report 2024"},null,null,null,null,null,null,null,{"$f":"+'Cover Page'!$B$33","v":"Lakeside EFW Ltd"}]
[]
["Emissions to Air (continuously monitored)"]
[null,null,null,null,null,null,null,null,null,null,null,null,null,"Notes:"]
["Summary of monitoring undertaken, standards used and compliance",null,null,null,null,null,null,null,null,null,null,null,null,"Template may require adjustment for any bespoke monitoring requirements of permit"]
["Contiuous emissions monitoring method EN 14181.",null,null,null,null,null,null,null,null,null,null,null,null,"Please check that all default ELV values match those for your plant and edit if necessary!"]
[null,null,null,null,null,null,null,null,null,null,null,null,null,"Report to 1 decimal place"]
[]
[]
[]
["Results of emissions to air that are continuously monitored (maximum and average values for each line) - oxygen reference 11%"]
["Substance","Reference Period","Emission Limit Value","A1",null,"A2",null,"A3",null,"A4",null,"A5"]
[null,null,null,"Max.","Avg.","Max.","Avg.","Max.","Avg.","Max.","Avg.","Max.","Avg."]
["Oxides of nitrogen","Daily mean","180 mg/m3 ",189.41,155.09,201.67,150.85]
[null,"½ hourly mean","400 mg/m3 ",332.46,155.13999999999999,323.32,149.29]
["Particulates","Daily mean","5 mg/m3",6.05,0.7,4.12,0.69]
[null,"½ hourly mean","30 mg/m3 ",47.03,0.71,25.69,0.45]
["Total Organic Carbon ","Daily mean","10 mg/m3 ",1.1200000000000001,0.26,1.45,0.38]
[null,"½ hourly mean","20 mg/m3 ",19.66,0.27,34.6,1.75]
["Hydrogen chloride ","Daily mean","8 mg/m3 ",7.12,4.34,7.09,3.27]
[null,"½ hourly mean","60 mg/m3 ",56.03,4.3600000000000003,13.15,3.43]
["Sulphur dioxide","Daily mean","40 mg/m3 ",20,6.69,5.75,15.07]
[null,"½ hourly mean","200 mg/m3 ",656.96,6.71,69.92,6.1]
["Carbon monoxide ","Daily mean","50 mg/m3 ",36.26,5.84,27.71,8.2899999999999991]
[null,"95%ile 10-min avg *","150 mg/m3 *",1789.94,66.430000000000007,9718.9699999999993,105.63]
[" Ammonia","Daily mean","15 mg/m3 ",13.11,0.6,8.92,0.27]
["* = delete as appropriate, depending on whether your plant has half-hourly or 10-min CO ELVs\n"]
["Comments :"]

{"sheet":"HCl","index":15,"n_rows":79,"n_cols":17,"rows_kept":79,"cut":false,"hidden":false,"merged":[[12,16,15,18],[51,9,63,9],[66,9,78,9],[4,9,4,14],[4,1,4,3],[4,4,4,6],[48,0,51,6],[47,0,47,6],[6,9,18,9],[21,9,33,9],[36,9,48,9],[3,16,7,18],[9,16,11,18],[18,4,18,6]]}
[{"$f":"+'Cover Page'!$B$29","v":"Annual Performance Report 2024"},null,null,null,{"$f":"+'Cover Page'!$B$33","v":"Lakeside EFW Ltd"}]
[]
["Monitoring of Hydrogen Chloride emissions",null,null,"Whole Installation",null,null,"See  Notes in Cell Q3",null,null,{"$f":"+A3","v":"Monitoring of Hydrogen Chloride emissions"},null,null,null,"Per Combustion Line",null,null,"Notes:"]
[null,null,null,null,null,null,null,null,null,null,null,null,null,null,null,null,"User to add logic to complete Whole installation, Table A5:G18. From the data in Per Combustion Line, Table J6:O79, subject to No. of lines installed"]
[{"$f":"+'Cover Page'!C39","v":2024},"1/2 Hourly Reference Periods",null,null,"Daily Reference Periods"]
["mg/Nm3","1/2 hourly HCl ELV","Monthly mean of half-hourly averages","Highest half- hourly average","Daily HCl ELV","Monthly mean of  daily averages","Highest daily average",null,null,{"$f":"+A5","v":2024},"mg/Nm3","Monthly mean of half-hourly averages","Highest half- hourly average","Monthly mean of  daily averages","Highest daily average"]
["Jan",60,{"$f":"(L7+L22)/2","v":3.9649999999999999},{"$f":"(M7+M22)/2","v":14.265000000000001},8,{"$f":"(N7+N22)/2","v":3.97},{"$f":"(O7+O22)/2","v":5.3450000000000006},null,null,"A1","Jan",3.82,21.17,3.83,4.58]
["Feb",60,{"$f":"(L8+L23)/2","v":4.1450000000000005},9.2749999999999986,8,{"$f":"(N8+N23)/2","v":4.1450000000000005},6.0350000000000001,null,null,null,"Feb",3.68,7.01,3.68,4.9800000000000004]
["Mar",60,4.5500000000000007,10.655000000000001,8,4.5500000000000007,6.4550000000000001,null,null,null,"Mar",4.82,9.4,4.82,6.64,null,"Whole Installation table A5:G18:"]
["Apr",60,3.4249999999999998,11.68,8,3.36,4.8650000000000002,null,null,null,"Apr",4.18,14.22,4.09,5.8,null,"Mean: for 1/2 hourly and daily periods calculate mean of values across all operational combustion lines for the month"]
["May",60,3.7149999999999999,7.84,8,3.7149999999999999,4.3500000000000005,null,null,null,"May",4.2,6.53,4.2,4.7300000000000004]
["Jun",60,2.9299999999999997,9.59,8,2.915,3.875,null,null,null,"Jun",3.65,5.03,3.65,4.2]
["Jul",60,3.34,52.945,8,3.11,4.2750000000000004,null,null,null,"Jul",4.04,56.03,3.96,5.24,null,"Maximum: for 1/2 hourly and daily periods use the highest value across all operational combustion lines for the month"]
["Aug",60,4.7850000000000001,10.555,8,4.7650000000000006,5.5150000000000006,null,null,null,"Aug",6.03,7.97,5.99,6.42]
["Sep",60,4.5049999999999999,12.895,8,3.84,4.3949999999999996,null,null,null,"Sep",3.85,10.92,3.81,4.5]
["Oct",60,3.605,10.91,8,3.5550000000000002,5.65,null,null,null,"Oct",4.17,8.67,4.1900000000000004,6.85]
["Nov",60,4.3149999999999995,9.1349999999999998,8,4.3149999999999995,6.9350000000000005,null,null,null,"Nov",5.6,9.5,5.6,7.12]
["Dec",60,3.45,9.5150000000000006,8,3.44,4.6400000000000006,null,null,null,"Dec",4.28,12.79,4.26,6.11]
[null,null,null,null,null,null,null,null,null,null,"Annual",{"$f":"AVERAGE(L7:L18)","v":4.3600000000000003},{"$f":"MAX(M7:M18)","v":56.03},{"$f":"AVERAGE(N7:N18)","v":4.34},{"$f":"MAX(O7:O18)","v":7.12}]
[]
[null,null,null,null,null,null,null,null,null,{"$f":"+A5","v":2024},"mg/Nm3","Monthly mean of half-hourly averages","Highest half- hourly average","Monthly mean of  daily averages","Highest daily average"]
[null,null,null,null,null,null,null,null,null,"A2","Jan",4.1100000000000003,7.36,4.1100000000000003,6.11]
[null,null,null,null,null,null,null,null,null,null,"Feb",4.6100000000000003,11.54,4.6100000000000003,7.09]
[null,null,null,null,null,null,null,null,null,null,"Mar",4.28,11.91,4.28,6.27]
[null,null,null,null,null,null,null,null,null,null,"Apr",2.67,9.14,2.63,3.93]
[null,null,null,null,null,null,null,null,null,null,"May",3.23,9.15,3.23,3.97]
[null,null,null,null,null,null,null,null,null,null,"Jun",2.21,14.15,2.1800000000000002,3.55]
[null,null,null,null,null,null,null,null,null,null,"Jul",2.64,49.86,2.2599999999999998,3.31]
[null,null,null,null,null,null,null,null,null,null,"Aug",3.54,13.14,3.54,4.6100000000000003]
[null,null,null,null,null,null,null,null,null,null,"Sep",5.16,14.87,3.87,4.29]
[null,null,null,null,null,null,null,null,null,null,"Oct",3.04,13.15,2.92,4.45]
[null,null,null,null,null,null,null,null,null,null,"Nov",3.03,8.77,3.03,6.75]
[null,null,null,null,null,null,null,null,null,null,"Dec",2.62,6.24,2.62,3.17]
[null,null,null,null,null,null,null,null,null,null,"Annual",{"$f":"AVERAGE(L22:L33)","v":3.4283333333333332},{"$f":"MAX(M22:M33)","v":49.86},{"$f":"AVERAGE(N22:N33)","v":3.273333333333333},{"$f":"MAX(O22:O33)","v":7.09}]
[]
[null,null,null,null,null,null,null,null,null,{"$f":"+A5","v":2024},"mg/Nm3","Monthly mean of half-hourly averages","Highest half- hourly average","Monthly mean of  daily averages","Highest daily average"]
[null,null,null,null,null,null,null,null,null,"A3","Jan"]
[null,null,null,null,null,null,null,null,null,null,"Feb"]
[null,null,null,null,null,null,null,null,null,null,"Mar"]
[null,null,null,null,null,null,null,null,null,null,"Apr"]
[null,null,null,null,null,null,null,null,null,null,"May"]
[null,null,null,null,null,null,null,null,null,null,"Jun"]
[null,null,null,null,null,null,null,null,null,null,"Jul"]
[null,null,null,null,null,null,null,null,null,null,"Aug"]
[null,null,null,null,null,null,null,null,null,null,"Sep"]
[null,null,null,null,null,null,null,null,null,null,"Oct"]
[null,null,null,null,null,null,null,null,null,null,"Nov"]
["Comments :",null,null,null,null,null,null,null,null,null,"Dec"]
[null,null,null,null,null,null,null,null,null,null,"Annual",{"$f":"AVERAGE(L37:L48)","v":{"$error":"#DIV/0!"}},{"$f":"MAX(M37:M48)","v":0},{"$f":"AVERAGE(N37:N48)","v":{"$error":"#DIV/0!"}},{"$f":"MAX(O37:O48)","v":0}]
[]
[null,null,null,null,null,null,null,null,null,{"$f":"+A5","v":2024},"mg/Nm3","Monthly mean of half-hourly averages","Highest half- hourly average","Monthly mean of  daily averages","Highest daily average"]
[null,null,null,null,null,null,null,null,null,"A4","Jan"]
[null,null,null,null,null,null,null,null,null,null,"Feb"]
[null,null,null,null,null,null,null,null,null,null,"Mar"]
[null,null,null,null,null,null,null,null,null,null,"Apr"]
[null,null,null,null,null,null,null,null,null,null,"May"]
[null,null,null,null,null,null,null,null,null,null,"Jun"]
[null,null,null,null,null,null,null,null,null,null,"Jul"]
[null,null,null,null,null,null,null,null,null,null,"Aug"]
[null,null,null,null,null,null,null,null,null,null,"Sep"]
[null,null,null,null,null,null,null,null,null,null,"Oct"]
[null,null,null,null,null,null,null,null,null,null,"Nov"]
[null,null,null,null,null,null,null,null,null,null,"Dec"]
[null,null,null,null,null,null,null,null,null,null,"Annual",{"$f":"AVERAGE(L52:L63)","v":{"$error":"#DIV/0!"}},{"$f":"MAX(M52:M63)","v":0},{"$f":"AVERAGE(N52:N63)","v":{"$error":"#DIV/0!"}},{"$f":"MAX(O52:O63)","v":0}]
[]
[null,null,null,null,null,null,null,null,null,{"$f":"+A5","v":2024},"mg/Nm3","Monthly mean of half-hourly averages","Highest half- hourly average","Monthly mean of  daily averages","Highest daily average"]
[null,null,null,null,null,null,null,null,null,"A5","Jan"]
[null,null,null,null,null,null,null,null,null,null,"Feb"]
[null,null,null,null,null,null,null,null,null,null,"Mar"]
[null,null,null,null,null,null,null,null,null,null,"Apr"]
[null,null,null,null,null,null,null,null,null,null,"May"]
[null,null,null,null,null,null,null,null,null,null,"Jun"]
[null,null,null,null,null,null,null,null,null,null,"Jul"]
[null,null,null,null,null,null,null,null,null,null,"Aug"]
[null,null,null,null,null,null,null,null,null,null,"Sep"]
[null,null,null,null,null,null,null,null,null,null,"Oct"]
[null,null,null,null,null,null,null,null,null,null,"Nov"]
[null,null,null,null,null,null,null,null,null,null,"Dec"]
[null,null,null,null,null,null,null,null,null,null,"Annual",{"$f":"AVERAGE(L67:L78)","v":{"$error":"#DIV/0!"}},{"$f":"MAX(M67:M78)","v":0},{"$f":"AVERAGE(N67:N78)","v":{"$error":"#DIV/0!"}},{"$f":"MAX(O67:O78)","v":0}]

{"sheet":"SO2","index":16,"n_rows":79,"n_cols":17,"rows_kept":79,"cut":false,"hidden":false,"merged":[[3,16,7,18],[9,16,11,18],[12,16,15,18],[66,9,78,9],[4,1,4,3],[4,4,4,6],[4,9,4,14],[6,9,18,9],[21,9,33,9],[36,9,48,9],[47,0,47,6],[48,0,51,6],[51,9,63,9],[18,4,18,6]]}
[{"$f":"+'Cover Page'!$B$29","v":"Annual Performance Report 2024"},null,null,null,{"$f":"+'Cover Page'!$B$33","v":"Lakeside EFW Ltd"}]
[]
["Monitoring of Sulphur dioxide emissions",null,null,"Whole Installation",null,null,"See  Notes in Cell Q3",null,null,{"$f":"+A3","v":"Monitoring of Sulphur dioxide emissions"},null,null,null,"Per Combustion Line",null,null,"Notes:"]
[null,null,null,null,null,null,null,null,null,null,null,null,null,null,null,null,"User to add logic to complete Whole installation, Table A5:G18. From the data in Per Combustion Line, Table J6:O79, subject to No. of lines installed"]
[{"$f":"+'Cover Page'!C39","v":2024},"1/2 Hourly Reference Periods",null,null,"Daily Reference Periods"]
["mg/Nm3","1/2 hourly SO2 ELV","Monthly mean of half-hourly averages","Highest half- hourly average","Daily SO2 ELV","Monthly mean of  daily averages","Highest daily average",null,null,{"$f":"+A5","v":2024},"mg/Nm3","Monthly mean of half-hourly averages","Highest half- hourly average","Monthly mean of  daily averages","Highest daily average"]
["Jan",200,{"$f":"(L7+L22)/2","v":5.0350000000000001},{"$f":"(M7+M22)/2","v":13.445},40,{"$f":"(N7+N22)/2","v":5.0199999999999996},{"$f":"(O7+O22)/2","v":8.5250000000000004},null,null,"A1","Jan",4.75,16.190000000000001,4.72,7.81]
["Feb",200,{"$f":"(L8+L23)/2","v":4.29},336.21500000000003,40,{"$f":"(N8+N23)/2","v":4.29},14.85,null,null,null,"Feb",3.58,656.96,3.58,20]
["Mar",200,6.5149999999999997,19.064999999999998,40,6.5149999999999997,10.64,null,null,null,"Mar",6.27,16.66,6.27,10.039999999999999,null,"Whole Installation table A5:G18:"]
["Apr",200,8.3949999999999996,45.625,40,8.375,12.86,null,null,null,"Apr",8.5,50.49,8.43,14.66,null,"Mean: for 1/2 hourly and daily periods calculate mean of values across all operational combustion lines for the month"]
["May",200,6.0150000000000006,21.024999999999999,40,6.02,11.86,null,null,null,"May",7.54,16.62,7.54,10.62]
["Jun",200,6.4300000000000006,34.53,40,6.62,12.11,null,null,null,"Jun",9.6300000000000008,18.68,9.6300000000000008,13.78]
["Jul",200,6.8849999999999998,34.505000000000003,40,6.55,12.12,null,null,null,"Jul",9.4700000000000006,19.66,9.52,14.87,null,"Maximum: for 1/2 hourly and daily periods use the highest value across all operational combustion lines for the month"]
["Aug",200,6.29,10.7,40,6.2850000000000001,6.7850000000000001,null,null,null,"Aug",6.66,7.89,6.65,6.77]
["Sep",200,7.7449999999999992,45.865000000000002,40,5.84,7.1499999999999995,null,null,null,"Sep",6.39,21.81,6.37,8.1999999999999993]
["Oct",200,6.8849999999999998,131.34,40,6.835,13.08,null,null,null,"Oct",6.15,211.3,6.05,11.09]
["Nov",200,6.0750000000000002,17.580000000000002,40,6.0750000000000002,7.9550000000000001,null,null,null,"Nov",5.7,21.67,5.7,6.81]
["Dec",200,6.2650000000000006,26.01,40,6.2450000000000001,7.625,null,null,null,"Dec",5.87,18.25,5.84,6.92]
[null,null,null,null,null,null,null,null,null,null,"Annual",{"$f":"AVERAGE(L7:L18)","v":6.7091666666666683},{"$f":"MAX(M7:M18)","v":656.96},{"$f":"AVERAGE(N7:N18)","v":6.6916666666666664},{"$f":"MAX(O7:O18)","v":20}]
[]
[null,null,null,null,null,null,null,null,null,{"$f":"+A5","v":2024},"mg/Nm3","Monthly mean of half-hourly averages","Highest half- hourly average","Monthly mean of  daily averages","Highest daily average"]
[null,null,null,null,null,null,null,null,null,"A2","Jan",5.32,10.7,5.32,9.24]
[null,null,null,null,null,null,null,null,null,null,"Feb",5,15.47,5,9.6999999999999993]
[null,null,null,null,null,null,null,null,null,null,"Mar",6.76,21.47,6.76,11.24]
[null,null,null,null,null,null,null,null,null,null,"Apr",8.2899999999999991,40.76,8.32,11.06]
[null,null,null,null,null,null,null,null,null,null,"May",4.49,25.43,4.5,13.1]
[null,null,null,null,null,null,null,null,null,null,"Jun",3.23,50.38,3.61,10.44]
[null,null,null,null,null,null,null,null,null,null,"Jul",4.3,49.35,3.58,9.3699999999999992]
[null,null,null,null,null,null,null,null,null,null,"Aug",5.92,13.51,5.92,6.8]
[null,null,null,null,null,null,null,null,null,null,"Sep",9.1,69.92,5.31,6.1]
[null,null,null,null,null,null,null,null,null,null,"Oct",7.62,51.38,7.62,15.07]
[null,null,null,null,null,null,null,null,null,null,"Nov",6.45,13.49,6.45,9.1]
[null,null,null,null,null,null,null,null,null,null,"Dec",6.66,33.770000000000003,6.65,8.33]
[null,null,null,null,null,null,null,null,null,null,"Annual",{"$f":"AVERAGE(L22:L33)","v":6.0949999999999989},{"$f":"MAX(M22:M33)","v":69.92},{"$f":"AVERAGE(N22:N33)","v":5.7533333333333339},{"$f":"MAX(O22:O33)","v":15.07}]
[]
[null,null,null,null,null,null,null,null,null,{"$f":"+A5","v":2024},"mg/Nm3","Monthly mean of half-hourly averages","Highest half- hourly average","Monthly mean of  daily averages","Highest daily average"]
[null,null,null,null,null,null,null,null,null,"A3","Jan"]
[null,null,null,null,null,null,null,null,null,null,"Feb"]
[null,null,null,null,null,null,null,null,null,null,"Mar"]
[null,null,null,null,null,null,null,null,null,null,"Apr"]
[null,null,null,null,null,null,null,null,null,null,"May"]
[null,null,null,null,null,null,null,null,null,null,"Jun"]
[null,null,null,null,null,null,null,null,null,null,"Jul"]
[null,null,null,null,null,null,null,null,null,null,"Aug"]
[null,null,null,null,null,null,null,null,null,null,"Sep"]
[null,null,null,null,null,null,null,null,null,null,"Oct"]
[null,null,null,null,null,null,null,null,null,null,"Nov"]
["Comments :",null,null,null,null,null,null,null,null,null,"Dec"]
[null,null,null,null,null,null,null,null,null,null,"Annual",{"$f":"AVERAGE(L37:L48)","v":{"$error":"#DIV/0!"}},{"$f":"MAX(M37:M48)","v":0},{"$f":"AVERAGE(N37:N48)","v":{"$error":"#DIV/0!"}},{"$f":"MAX(O37:O48)","v":0}]
[]
[null,null,null,null,null,null,null,null,null,{"$f":"+A5","v":2024},"mg/Nm3","Monthly mean of half-hourly averages","Highest half- hourly average","Monthly mean of  daily averages","Highest daily average"]
[null,null,null,null,null,null,null,null,null,"A4","Jan"]
[null,null,null,null,null,null,null,null,null,null,"Feb"]
[null,null,null,null,null,null,null,null,null,null,"Mar"]
[null,null,null,null,null,null,null,null,null,null,"Apr"]
[null,null,null,null,null,null,null,null,null,null,"May"]
[null,null,null,null,null,null,null,null,null,null,"Jun"]
[null,null,null,null,null,null,null,null,null,null,"Jul"]
[null,null,null,null,null,null,null,null,null,null,"Aug"]
[null,null,null,null,null,null,null,null,null,null,"Sep"]
[null,null,null,null,null,null,null,null,null,null,"Oct"]
[null,null,null,null,null,null,null,null,null,null,"Nov"]
[null,null,null,null,null,null,null,null,null,null,"Dec"]
[null,null,null,null,null,null,null,null,null,null,"Annual",{"$f":"AVERAGE(L52:L63)","v":{"$error":"#DIV/0!"}},{"$f":"MAX(M52:M63)","v":0},{"$f":"AVERAGE(N52:N63)","v":{"$error":"#DIV/0!"}},{"$f":"MAX(O52:O63)","v":0}]
[]
[null,null,null,null,null,null,null,null,null,{"$f":"+A5","v":2024},"mg/Nm3","Monthly mean of half-hourly averages","Highest half- hourly average","Monthly mean of  daily averages","Highest daily average"]
[null,null,null,null,null,null,null,null,null,"A5","Jan"]
[null,null,null,null,null,null,null,null,null,null,"Feb"]
[null,null,null,null,null,null,null,null,null,null,"Mar"]
[null,null,null,null,null,null,null,null,null,null,"Apr"]
[null,null,null,null,null,null,null,null,null,null,"May"]
[null,null,null,null,null,null,null,null,null,null,"Jun"]
[null,null,null,null,null,null,null,null,null,null,"Jul"]
[null,null,null,null,null,null,null,null,null,null,"Aug"]
[null,null,null,null,null,null,null,null,null,null,"Sep"]
[null,null,null,null,null,null,null,null,null,null,"Oct"]
[null,null,null,null,null,null,null,null,null,null,"Nov"]
[null,null,null,null,null,null,null,null,null,null,"Dec"]
[null,null,null,null,null,null,null,null,null,null,"Annual",{"$f":"AVERAGE(L67:L78)","v":{"$error":"#DIV/0!"}},{"$f":"MAX(M67:M78)","v":0},{"$f":"AVERAGE(N67:N78)","v":{"$error":"#DIV/0!"}},{"$f":"MAX(O67:O78)","v":0}]

{"sheet":"NOx","index":17,"n_rows":79,"n_cols":17,"rows_kept":79,"cut":false,"hidden":false,"merged":[[3,16,7,18],[9,16,11,18],[12,16,15,18],[66,9,78,9],[4,1,4,3],[4,4,4,6],[4,9,4,14],[6,9,18,9],[21,9,33,9],[36,9,48,9],[47,0,47,6],[48,0,51,6],[51,9,63,9],[18,4,18,6]]}
[{"$f":"+'Cover Page'!$B$29","v":"Annual Performance Report 2024"},null,null,null,{"$f":"+'Cover Page'!$B$33","v":"Lakeside EFW Ltd"}]
[]
["Monitoring of Oxides of Nitrogen emissions",null,null,"Whole Installation",null,null,"See  Notes in Cell Q3",null,null,{"$f":"+A3","v":"Monitoring of Oxides of Nitrogen emissions"},null,null,null,"Per Combustion Line",null,null,"Notes:"]
[null,null,null,null,null,null,null,null,null,null,null,null,null,null,null,null,"User to add logic to complete Whole installation, Table A5:G18. From the data in Per Combustion Line, Table J6:O79, subject to No. of lines installed"]
[{"$f":"+'Cover Page'!C39","v":2024},"1/2 Hourly Reference Periods",null,null,"Daily Reference Periods"]
["mg/Nm3","1/2 hourly NOx ELV","Monthly mean of half-hourly averages","Highest half- hourly average","Daily NOx ELV","Monthly mean of  daily averages","Highest daily average",null,null,{"$f":"+A5","v":2024},"mg/Nm3","Monthly mean of half-hourly averages","Highest half- hourly average","Monthly mean of  daily averages","Highest daily average"]
["Jan",400,{"$f":"(L7+L22)/2","v":117.285},{"$f":"(M7+M22)/2","v":196.935},180,{"$f":"(N7+N22)/2","v":117.24},{"$f":"(O7+O22)/2","v":146.05000000000001},null,null,"A1","Jan",123.94,191.9,123.85,139.08000000000001]
["Feb",400,{"$f":"(L8+L23)/2","v":115.77500000000001},192.93,180,{"$f":"(N8+N23)/2","v":115.77500000000001},132.57999999999998,null,null,null,"Feb",125.19,171.87,125.19,133.1]
["Mar",400,160.05500000000001,290.86500000000001,180,160.06,191.30500000000001,null,null,null,"Mar",160.71,280.56,160.71,180.94,null,"Whole Installation table A5:G18:"]
["Apr",400,155.95999999999998,327.89,180,155.42000000000002,183.42000000000002,null,null,null,"Apr",150.22999999999999,332.46,148.96,189.41,null,"Mean: for 1/2 hourly and daily periods calculate mean of values across all operational combustion lines for the month"]
["May",400,163.88499999999999,243.32499999999999,180,163.89,173.935,null,null,null,"May",162.46,219.56,162.47,172.81]
["Jun",400,164.77499999999998,280.69499999999999,180,164.75,174,null,null,null,"Jun",164.1,243.22,164.1,170.89]
["Jul",400,162.595,251.32999999999998,180,162.08499999999998,179.46499999999997,null,null,null,"Jul",163.6,235.45,163.69,180.04,null,"Maximum: for 1/2 hourly and daily periods use the highest value across all operational combustion lines for the month"]
["Aug",400,160.10499999999999,254.035,180,160.62,168.05,null,null,null,"Aug",162.79,206.06,163.83000000000001,167.85]
["Sep",400,150.82499999999999,238.995,180,160.69,165.21499999999997,null,null,null,"Sep",165.22,232.05,165.02,172.29]
["Oct",400,157.86000000000001,245.26,180,157.82499999999999,173.66,null,null,null,"Oct",157.16,233.15,157.13999999999999,176.31]
["Nov",400,158.48000000000002,233.98500000000001,180,158.48500000000001,173.8,null,null,null,"Nov",163.77000000000001,237.83,163.78,176.6]
["Dec",400,158.97499999999999,232.09,180,158.82,171.57499999999999,null,null,null,"Dec",162.5,220.69,162.33000000000001,171.53]
[null,null,null,null,null,null,null,null,null,null,"Annual",{"$f":"AVERAGE(L7:L18)","v":155.13916666666668},{"$f":"MAX(M7:M18)","v":332.46},{"$f":"AVERAGE(N7:N18)","v":155.08916666666667},{"$f":"MAX(O7:O18)","v":189.41}]
[]
[null,null,null,null,null,null,null,null,null,{"$f":"+A5","v":2024},"mg/Nm3","Monthly mean of half-hourly averages","Highest half- hourly average","Monthly mean of  daily averages","Highest daily average"]
[null,null,null,null,null,null,null,null,null,"A2","Jan",110.63,201.97,110.63,153.02000000000001]
[null,null,null,null,null,null,null,null,null,null,"Feb",106.36,213.99,106.36,132.06]
[null,null,null,null,null,null,null,null,null,null,"Mar",159.4,301.17,159.41,201.67]
[null,null,null,null,null,null,null,null,null,null,"Apr",161.69,323.32,161.88,177.43]
[null,null,null,null,null,null,null,null,null,null,"May",165.31,267.08999999999997,165.31,175.06]
[null,null,null,null,null,null,null,null,null,null,"Jun",165.45,318.17,165.4,177.11]
[null,null,null,null,null,null,null,null,null,null,"Jul",161.59,267.20999999999998,160.47999999999999,178.89]
[null,null,null,null,null,null,null,null,null,null,"Aug",157.41999999999999,302.01,157.41,168.25]
[null,null,null,null,null,null,null,null,null,null,"Sep",136.43,245.94,156.36000000000001,158.13999999999999]
[null,null,null,null,null,null,null,null,null,null,"Oct",158.56,257.37,158.51,171.01]
[null,null,null,null,null,null,null,null,null,null,"Nov",153.19,230.14,153.19,171]
[null,null,null,null,null,null,null,null,null,null,"Dec",155.44999999999999,243.49,155.31,171.62]
[null,null,null,null,null,null,null,null,null,null,"Annual",{"$f":"AVERAGE(L22:L33)","v":149.29},{"$f":"MAX(M22:M33)","v":323.32},{"$f":"AVERAGE(N22:N33)","v":150.85416666666666},{"$f":"MAX(O22:O33)","v":201.67}]
[]
[null,null,null,null,null,null,null,null,null,{"$f":"+A5","v":2024},"mg/Nm3","Monthly mean of half-hourly averages","Highest half- hourly average","Monthly mean of  daily averages","Highest daily average"]
[null,null,null,null,null,null,null,null,null,"A3","Jan"]
[null,null,null,null,null,null,null,null,null,null,"Feb"]
[null,null,null,null,null,null,null,null,null,null,"Mar"]
[null,null,null,null,null,null,null,null,null,null,"Apr"]
[null,null,null,null,null,null,null,null,null,null,"May"]
[null,null,null,null,null,null,null,null,null,null,"Jun"]
[null,null,null,null,null,null,null,null,null,null,"Jul"]
[null,null,null,null,null,null,null,null,null,null,"Aug"]
[null,null,null,null,null,null,null,null,null,null,"Sep"]
[null,null,null,null,null,null,null,null,null,null,"Oct"]
[null,null,null,null,null,null,null,null,null,null,"Nov"]
["Comments :",null,null,null,null,null,null,null,null,null,"Dec"]
[null,null,null,null,null,null,null,null,null,null,"Annual",{"$f":"AVERAGE(L37:L48)","v":{"$error":"#DIV/0!"}},{"$f":"MAX(M37:M48)","v":0},{"$f":"AVERAGE(N37:N48)","v":{"$error":"#DIV/0!"}},{"$f":"MAX(O37:O48)","v":0}]
[]
[null,null,null,null,null,null,null,null,null,{"$f":"+A5","v":2024},"mg/Nm3","Monthly mean of half-hourly averages","Highest half- hourly average","Monthly mean of  daily averages","Highest daily average"]
[null,null,null,null,null,null,null,null,null,"A4","Jan"]
[null,null,null,null,null,null,null,null,null,null,"Feb"]
[null,null,null,null,null,null,null,null,null,null,"Mar"]
[null,null,null,null,null,null,null,null,null,null,"Apr"]
[null,null,null,null,null,null,null,null,null,null,"May"]
[null,null,null,null,null,null,null,null,null,null,"Jun"]
[null,null,null,null,null,null,null,null,null,null,"Jul"]
[null,null,null,null,null,null,null,null,null,null,"Aug"]
[null,null,null,null,null,null,null,null,null,null,"Sep"]
[null,null,null,null,null,null,null,null,null,null,"Oct"]
[null,null,null,null,null,null,null,null,null,null,"Nov"]
[null,null,null,null,null,null,null,null,null,null,"Dec"]
[null,null,null,null,null,null,null,null,null,null,"Annual",{"$f":"AVERAGE(L52:L63)","v":{"$error":"#DIV/0!"}},{"$f":"MAX(M52:M63)","v":0},{"$f":"AVERAGE(N52:N63)","v":{"$error":"#DIV/0!"}},{"$f":"MAX(O52:O63)","v":0}]
[]
[null,null,null,null,null,null,null,null,null,{"$f":"+A5","v":2024},"mg/Nm3","Monthly mean of half-hourly averages","Highest half- hourly average","Monthly mean of  daily averages","Highest daily average"]
[null,null,null,null,null,null,null,null,null,"A5","Jan"]
[null,null,null,null,null,null,null,null,null,null,"Feb"]
[null,null,null,null,null,null,null,null,null,null,"Mar"]
[null,null,null,null,null,null,null,null,null,null,"Apr"]
[null,null,null,null,null,null,null,null,null,null,"May"]
[null,null,null,null,null,null,null,null,null,null,"Jun"]
[null,null,null,null,null,null,null,null,null,null,"Jul"]
[null,null,null,null,null,null,null,null,null,null,"Aug"]
[null,null,null,null,null,null,null,null,null,null,"Sep"]
[null,null,null,null,null,null,null,null,null,null,"Oct"]
[null,null,null,null,null,null,null,null,null,null,"Nov"]
[null,null,null,null,null,null,null,null,null,null,"Dec"]
[null,null,null,null,null,null,null,null,null,null,"Annual",{"$f":"AVERAGE(L67:L78)","v":{"$error":"#DIV/0!"}},{"$f":"MAX(M67:M78)","v":0},{"$f":"AVERAGE(N67:N78)","v":{"$error":"#DIV/0!"}},{"$f":"MAX(O67:O78)","v":0}]

{"sheet":"TOC","index":18,"n_rows":79,"n_cols":17,"rows_kept":79,"cut":false,"hidden":false,"merged":[[3,16,7,18],[9,16,11,18],[12,16,15,18],[66,9,78,9],[4,1,4,3],[4,4,4,6],[4,9,4,14],[6,9,18,9],[21,9,33,9],[36,9,48,9],[47,0,47,6],[48,0,51,6],[51,9,63,9]]}
[{"$f":"+'Cover Page'!$B$29","v":"Annual Performance Report 2024"},null,null,null,{"$f":"+'Cover Page'!$B$33","v":"Lakeside EFW Ltd"}]
[]
["Monitoring of Total organic carbon emissions",null,null,"Whole Installation",null,null,"See  Notes in Cell Q3",null,null,{"$f":"+A3","v":"Monitoring of Total organic carbon emissions"},null,null,null,"Per Combustion Line",null,null,"Notes:"]
[null,null,null,null,null,null,null,null,null,null,null,null,null,null,null,null,"User to add logic to complete Whole installation, Table A5:G18. From the data in Per Combustion Line, Table J6:O79, subject to No. of lines installed"]
[{"$f":"+'Cover Page'!C39","v":2024},"1/2 Hourly Reference Periods",null,null,"Daily Reference Periods"]
["mg/Nm3","1/2 hourly TOC ELV","Monthly mean of half-hourly averages","Highest half- hourly average","Daily TOC ELV","Monthly mean of  daily averages","Highest daily average",null,null,{"$f":"+A5","v":2024},"mg/Nm3","Monthly mean of half-hourly averages","Highest half- hourly average","Monthly mean of  daily averages","Highest daily average"]
["Jan",20,{"$f":"(L7+L22)/2","v":0.29000000000000004},{"$f":"(M7+M22)/2","v":6.2549999999999999},10,{"$f":"(N7+N22)/2","v":0.27500000000000002},{"$f":"(O7+O22)/2","v":0.48},null,null,"A1","Jan",0.4,8.9,0.37,0.63]
["Feb",20,{"$f":"(L8+L23)/2","v":0.315},8.24,10,{"$f":"(N8+N23)/2","v":0.315},0.79,null,null,null,"Feb",0.39,12.32,0.39,1.1200000000000001]
["Mar",20,0.30000000000000004,6.1449999999999996,10,0.30000000000000004,0.67999999999999994,null,null,null,"Mar",0.26,6.42,0.26,0.61,null,"Whole Installation table A5:G18:"]
["Apr",20,0.41500000000000004,5.59,10,0.39500000000000002,0.625,null,null,null,"Apr",0.32,4.08,0.33,0.64,null,"Mean: for 1/2 hourly and daily periods calculate mean of values across all operational combustion lines for the month"]
["May",20,0.37,5.165,10,0.37,0.64500000000000002,null,null,null,"May",0.28999999999999998,3.48,0.28999999999999998,0.39]
["Jun",20,0.38,4.53,10,0.37,0.55000000000000004,null,null,null,"Jun",0.26,4.1900000000000004,0.26,0.47]
["Jul",20,0.80999999999999994,22.615000000000002,10,0.33499999999999996,0.85,null,null,null,"Jul",0.21,10.63,0.2,0.5,null,"Maximum: for 1/2 hourly and daily periods use the highest value across all operational combustion lines for the month"]
["Aug",20,0.38500000000000001,3.87,10,0.38500000000000001,0.56499999999999995,null,null,null,"Aug",0.26,2.2599999999999998,0.26,0.31]
["Sep",20,7.9350000000000005,3.35,10,0.255,0.33999999999999997,null,null,null,"Sep",7.0000000000000007E-2,4.03,0.05,0.18]
["Oct",20,0.32,11.285,10,0.30499999999999999,0.90999999999999992,null,null,null,"Oct",0.15,14.51,0.15,0.37]
["Nov",20,0.28000000000000003,9.8949999999999996,10,0.28000000000000003,0.89500000000000002,null,null,null,"Nov",0.27,7.74,0.27,0.62]
["Dec",20,0.315,16.38,10,0.27500000000000002,0.495,null,null,null,"Dec",0.36,19.66,0.3,0.56000000000000005]
[null,null,null,null,null,null,null,null,null,null,"Annual",{"$f":"AVERAGE(L7:L18)","v":0.27},{"$f":"MAX(M7:M18)","v":19.66},{"$f":"AVERAGE(N7:N18)","v":0.26083333333333331},{"$f":"MAX(O7:O18)","v":1.1200000000000001}]
[]
[null,null,null,null,null,null,null,null,null,{"$f":"+A5","v":2024},"mg/Nm3","Monthly mean of half-hourly averages","Highest half- hourly average","Monthly mean of  daily averages","Highest daily average"]
[null,null,null,null,null,null,null,null,null,"A2","Jan",0.18,3.61,0.18,0.33]
[null,null,null,null,null,null,null,null,null,null,"Feb",0.24,4.16,0.24,0.46]
[null,null,null,null,null,null,null,null,null,null,"Mar",0.34,5.87,0.34,0.75]
[null,null,null,null,null,null,null,null,null,null,"Apr",0.51,7.1,0.46,0.61]
[null,null,null,null,null,null,null,null,null,null,"May",0.45,6.85,0.45,0.9]
[null,null,null,null,null,null,null,null,null,null,"Jun",0.5,4.87,0.48,0.63]
[null,null,null,null,null,null,null,null,null,null,"Jul",1.41,34.6,0.47,1.2]
[null,null,null,null,null,null,null,null,null,null,"Aug",0.51,5.48,0.51,0.82]
[null,null,null,null,null,null,null,null,null,null,"Sep",15.8,2.67,0.46,0.5]
[null,null,null,null,null,null,null,null,null,null,"Oct",0.49,8.06,0.46,1.45]
[null,null,null,null,null,null,null,null,null,null,"Nov",0.28999999999999998,12.05,0.28999999999999998,1.17]
[null,null,null,null,null,null,null,null,null,null,"Dec",0.27,13.1,0.25,0.43]
[null,null,null,null,null,null,null,null,null,null,"Annual",{"$f":"AVERAGE(L22:L33)","v":1.7491666666666665},{"$f":"MAX(M22:M33)","v":34.6},{"$f":"AVERAGE(N22:N33)","v":0.38250000000000001},{"$f":"MAX(O22:O33)","v":1.45}]
[]
[null,null,null,null,null,null,null,null,null,{"$f":"+A5","v":2024},"mg/Nm3","Monthly mean of half-hourly averages","Highest half- hourly average","Monthly mean of  daily averages","Highest daily average"]
[null,null,null,null,null,null,null,null,null,"A3","Jan"]
[null,null,null,null,null,null,null,null,null,null,"Feb"]
[null,null,null,null,null,null,null,null,null,null,"Mar"]
[null,null,null,null,null,null,null,null,null,null,"Apr"]
[null,null,null,null,null,null,null,null,null,null,"May"]
[null,null,null,null,null,null,null,null,null,null,"Jun"]
[null,null,null,null,null,null,null,null,null,null,"Jul"]
[null,null,null,null,null,null,null,null,null,null,"Aug"]
[null,null,null,null,null,null,null,null,null,null,"Sep"]
[null,null,null,null,null,null,null,null,null,null,"Oct"]
[null,null,null,null,null,null,null,null,null,null,"Nov"]
["Comments :",null,null,null,null,null,null,null,null,null,"Dec"]
[null,null,null,null,null,null,null,null,null,null,"Annual",{"$f":"AVERAGE(L37:L48)","v":{"$error":"#DIV/0!"}},{"$f":"MAX(M37:M48)","v":0},{"$f":"AVERAGE(N37:N48)","v":{"$error":"#DIV/0!"}},{"$f":"MAX(O37:O48)","v":0}]
[]
[null,null,null,null,null,null,null,null,null,{"$f":"+A5","v":2024},"mg/Nm3","Monthly mean of half-hourly averages","Highest half- hourly average","Monthly mean of  daily averages","Highest daily average"]
[null,null,null,null,null,null,null,null,null,"A4","Jan"]
[null,null,null,null,null,null,null,null,null,null,"Feb"]
[null,null,null,null,null,null,null,null,null,null,"Mar"]
[null,null,null,null,null,null,null,null,null,null,"Apr"]
[null,null,null,null,null,null,null,null,null,null,"May"]
[null,null,null,null,null,null,null,null,null,null,"Jun"]
[null,null,null,null,null,null,null,null,null,null,"Jul"]
[null,null,null,null,null,null,null,null,null,null,"Aug"]
[null,null,null,null,null,null,null,null,null,null,"Sep"]
[null,null,null,null,null,null,null,null,null,null,"Oct"]
[null,null,null,null,null,null,null,null,null,null,"Nov"]
[null,null,null,null,null,null,null,null,null,null,"Dec"]
[null,null,null,null,null,null,null,null,null,null,"Annual",{"$f":"AVERAGE(L52:L63)","v":{"$error":"#DIV/0!"}},{"$f":"MAX(M52:M63)","v":0},{"$f":"AVERAGE(N52:N63)","v":{"$error":"#DIV/0!"}},{"$f":"MAX(O52:O63)","v":0}]
[]
[null,null,null,null,null,null,null,null,null,{"$f":"+A5","v":2024},"mg/Nm3","Monthly mean of half-hourly averages","Highest half- hourly average","Monthly mean of  daily averages","Highest daily average"]
[null,null,null,null,null,null,null,null,null,"A5","Jan"]
[null,null,null,null,null,null,null,null,null,null,"Feb"]
[null,null,null,null,null,null,null,null,null,null,"Mar"]
[null,null,null,null,null,null,null,null,null,null,"Apr"]
[null,null,null,null,null,null,null,null,null,null,"May"]
[null,null,null,null,null,null,null,null,null,null,"Jun"]
[null,null,null,null,null,null,null,null,null,null,"Jul"]
[null,null,null,null,null,null,null,null,null,null,"Aug"]
[null,null,null,null,null,null,null,null,null,null,"Sep"]
[null,null,null,null,null,null,null,null,null,null,"Oct"]
[null,null,null,null,null,null,null,null,null,null,"Nov"]
[null,null,null,null,null,null,null,null,null,null,"Dec"]
[null,null,null,null,null,null,null,null,null,null,"Annual",{"$f":"AVERAGE(L67:L78)","v":{"$error":"#DIV/0!"}},{"$f":"MAX(M67:M78)","v":0},{"$f":"AVERAGE(N67:N78)","v":{"$error":"#DIV/0!"}},{"$f":"MAX(O67:O78)","v":0}]

{"sheet":"Particulates","index":19,"n_rows":79,"n_cols":17,"rows_kept":79,"cut":false,"hidden":false,"merged":[[4,16,8,18],[10,16,12,18],[13,16,16,18],[66,9,78,9],[4,1,4,3],[4,4,4,6],[4,9,4,14],[6,9,18,9],[21,9,33,9],[36,9,48,9],[47,0,47,6],[48,0,51,6],[51,9,63,9],[18,4,18,6]]}
[{"$f":"+'Cover Page'!$B$29","v":"Annual Performance Report 2024"},null,null,null,{"$f":"+'Cover Page'!$B$33","v":"Lakeside EFW Ltd"}]
[]
["Monitoring of Particulate matter emissions",null,null,"Whole Installation",null,null,"See  Notes in Cell Q3",null,null,{"$f":"+A3","v":"Monitoring of Particulate matter emissions"},null,null,null,"Per Combustion Line",null,null,"Notes:"]
[]
[{"$f":"+'Cover Page'!C39","v":2024},"1/2 Hourly Reference Periods",null,null,"Daily Reference Periods",null,null,null,null,null,null,null,null,null,null,null,"User to add logic to complete Whole installation, Table A5:G18. From the data in Per Combustion Line, Table J6:O79, subject to No. of lines installed"]
["mg/Nm3","1/2 hourly PM ELV","Monthly mean of half-hourly averages","Highest half- hourly average","Daily PM ELV","Monthly mean of  daily averages","Highest daily average",null,null,{"$f":"+A5","v":2024},"mg/Nm3","Monthly mean of half-hourly averages","Highest half- hourly average","Monthly mean of  daily averages","Highest daily average"]
["Jan",30,{"$f":"(L7+L22)/2","v":0.435},{"$f":"(M7+M22)/2","v":2.0700000000000003},5,{"$f":"(N7+N22)/2","v":0.435},{"$f":"(O7+O22)/2","v":1.1299999999999999},null,null,"A1","Jan",0.63,3.47,0.63,1.94]
["Feb",30,{"$f":"(L8+L23)/2","v":0.49},26.175000000000001,5,{"$f":"(N8+N23)/2","v":0.49},2.0750000000000002,null,null,null,"Feb",0.71,47.03,0.71,3.71]
["Mar",30,0.48499999999999999,1.8599999999999999,5,0.48,0.67499999999999993,null,null,null,"Mar",0.68,2.52,0.67,0.94]
["Apr",30,0.48,4.0149999999999997,5,0.47000000000000003,0.64500000000000002,null,null,null,"Apr",0.69,5.71,0.68,0.91,null,"Whole Installation table A5:G18:"]
["May",30,0.53,1.085,5,0.53,0.67500000000000004,null,null,null,"May",0.8,1.5,0.8,1.05,null,"Mean: for 1/2 hourly and daily periods calculate mean of values across all operational combustion lines for the month"]
["Jun",30,0.55000000000000004,1.69,5,0.55000000000000004,0.71500000000000008,null,null,null,"Jun",0.84,2.0099999999999998,0.84,1.03]
["Jul",30,0.56000000000000005,21.58,5,0.53500000000000003,1.04,null,null,null,"Jul",0.8,17.47,0.78,1.51]
["Aug",30,0.28500000000000003,0.96,5,0.28000000000000003,0.34499999999999997,null,null,null,"Aug",0.3,1.26,0.28999999999999998,0.35,null,"Maximum: for 1/2 hourly and daily periods use the highest value across all operational combustion lines for the month"]
["Sep",30,1,17.115000000000002,5,0.59499999999999997,3.16,null,null,null,"Sep",0.94,15.14,0.94,6.05]
["Oct",30,0.76500000000000001,10.095000000000001,5,0.77,3.73,null,null,null,"Oct",0.62,5.55,0.62,3.8]
["Nov",30,0.44,4.5150000000000006,5,0.44,2.04,null,null,null,"Nov",0.38,2.99,0.38,1.48]
["Dec",30,0.9,10.29,5,0.87,3.5750000000000002,null,null,null,"Dec",1.1100000000000001,12.67,1.05,3.03]
[null,null,null,null,null,null,null,null,null,null,"Annual",{"$f":"AVERAGE(L7:L18)","v":0.70833333333333315},{"$f":"MAX(M7:M18)","v":47.03},{"$f":"AVERAGE(N7:N18)","v":0.69916666666666671},{"$f":"MAX(O7:O18)","v":6.05}]
[]
[null,null,null,null,null,null,null,null,null,{"$f":"+A5","v":2024},"mg/Nm3","Monthly mean of half-hourly averages","Highest half- hourly average","Monthly mean of  daily averages","Highest daily average"]
[null,null,null,null,null,null,null,null,null,"A2","Jan",0.24,0.67,0.24,0.32]
[null,null,null,null,null,null,null,null,null,null,"Feb",0.27,5.32,0.27,0.44]
[null,null,null,null,null,null,null,null,null,null,"Mar",0.28999999999999998,1.2,0.28999999999999998,0.41]
[null,null,null,null,null,null,null,null,null,null,"Apr",0.27,2.3199999999999998,0.26,0.38]
[null,null,null,null,null,null,null,null,null,null,"May",0.26,0.67,0.26,0.3]
[null,null,null,null,null,null,null,null,null,null,"Jun",0.26,1.37,0.26,0.4]
[null,null,null,null,null,null,null,null,null,null,"Jul",0.32,25.69,0.28999999999999998,0.56999999999999995]
[null,null,null,null,null,null,null,null,null,null,"Aug",0.27,0.66,0.27,0.34]
[null,null,null,null,null,null,null,null,null,null,"Sep",1.06,19.09,0.25,0.27]
[null,null,null,null,null,null,null,null,null,null,"Oct",0.91,14.64,0.92,3.66]
[null,null,null,null,null,null,null,null,null,null,"Nov",0.5,6.04,0.5,2.6]
[null,null,null,null,null,null,null,null,null,null,"Dec",0.69,7.91,0.69,4.12]
[null,null,null,null,null,null,null,null,null,null,"Annual",{"$f":"AVERAGE(L22:L33)","v":0.44500000000000001},{"$f":"MAX(M22:M33)","v":25.69},{"$f":"AVERAGE(N22:N33)","v":0.375},{"$f":"MAX(O22:O33)","v":4.12}]
[]
[null,null,null,null,null,null,null,null,null,{"$f":"+A5","v":2024},"mg/Nm3","Monthly mean of half-hourly averages","Highest half- hourly average","Monthly mean of  daily averages","Highest daily average"]
[null,null,null,null,null,null,null,null,null,"A3","Jan"]
[null,null,null,null,null,null,null,null,null,null,"Feb"]
[null,null,null,null,null,null,null,null,null,null,"Mar"]
[null,null,null,null,null,null,null,null,null,null,"Apr"]
[null,null,null,null,null,null,null,null,null,null,"May"]
[null,null,null,null,null,null,null,null,null,null,"Jun"]
[null,null,null,null,null,null,null,null,null,null,"Jul"]
[null,null,null,null,null,null,null,null,null,null,"Aug"]
[null,null,null,null,null,null,null,null,null,null,"Sep"]
[null,null,null,null,null,null,null,null,null,null,"Oct"]
[null,null,null,null,null,null,null,null,null,null,"Nov"]
["Comments :",null,null,null,null,null,null,null,null,null,"Dec"]
[null,null,null,null,null,null,null,null,null,null,"Annual",{"$f":"AVERAGE(L37:L48)","v":{"$error":"#DIV/0!"}},{"$f":"MAX(M37:M48)","v":0},{"$f":"AVERAGE(N37:N48)","v":{"$error":"#DIV/0!"}},{"$f":"MAX(O37:O48)","v":0}]
[]
[null,null,null,null,null,null,null,null,null,{"$f":"+A5","v":2024},"mg/Nm3","Monthly mean of half-hourly averages","Highest half- hourly average","Monthly mean of  daily averages","Highest daily average"]
[null,null,null,null,null,null,null,null,null,"A4","Jan"]
[null,null,null,null,null,null,null,null,null,null,"Feb"]
[null,null,null,null,null,null,null,null,null,null,"Mar"]
[null,null,null,null,null,null,null,null,null,null,"Apr"]
[null,null,null,null,null,null,null,null,null,null,"May"]
[null,null,null,null,null,null,null,null,null,null,"Jun"]
[null,null,null,null,null,null,null,null,null,null,"Jul"]
[null,null,null,null,null,null,null,null,null,null,"Aug"]
[null,null,null,null,null,null,null,null,null,null,"Sep"]
[null,null,null,null,null,null,null,null,null,null,"Oct"]
[null,null,null,null,null,null,null,null,null,null,"Nov"]
[null,null,null,null,null,null,null,null,null,null,"Dec"]
[null,null,null,null,null,null,null,null,null,null,"Annual",{"$f":"AVERAGE(L52:L63)","v":{"$error":"#DIV/0!"}},{"$f":"MAX(M52:M63)","v":0},{"$f":"AVERAGE(N52:N63)","v":{"$error":"#DIV/0!"}},{"$f":"MAX(O52:O63)","v":0}]
[]
[null,null,null,null,null,null,null,null,null,{"$f":"+A5","v":2024},"mg/Nm3","Monthly mean of half-hourly averages","Highest half- hourly average","Monthly mean of  daily averages","Highest daily average"]
[null,null,null,null,null,null,null,null,null,"A5","Jan"]
[null,null,null,null,null,null,null,null,null,null,"Feb"]
[null,null,null,null,null,null,null,null,null,null,"Mar"]
[null,null,null,null,null,null,null,null,null,null,"Apr"]
[null,null,null,null,null,null,null,null,null,null,"May"]
[null,null,null,null,null,null,null,null,null,null,"Jun"]
[null,null,null,null,null,null,null,null,null,null,"Jul"]
[null,null,null,null,null,null,null,null,null,null,"Aug"]
[null,null,null,null,null,null,null,null,null,null,"Sep"]
[null,null,null,null,null,null,null,null,null,null,"Oct"]
[null,null,null,null,null,null,null,null,null,null,"Nov"]
[null,null,null,null,null,null,null,null,null,null,"Dec"]
[null,null,null,null,null,null,null,null,null,null,"Annual",{"$f":"AVERAGE(L67:L78)","v":{"$error":"#DIV/0!"}},{"$f":"MAX(M67:M78)","v":0},{"$f":"AVERAGE(N67:N78)","v":{"$error":"#DIV/0!"}},{"$f":"MAX(O67:O78)","v":0}]

{"sheet":"CO 0.5 hourly","index":20,"n_rows":82,"n_cols":17,"rows_kept":82,"cut":false,"hidden":false,"merged":[[4,0,5,6],[6,16,10,18],[12,16,14,18],[15,16,18,18],[69,9,81,9],[7,1,7,3],[7,4,7,6],[7,9,7,14],[9,9,21,9],[24,9,36,9],[39,9,51,9],[50,0,50,6],[51,0,54,6],[54,9,66,9]]}
[{"$f":"+'Cover Page'!$B$29","v":"Annual Performance Report 2024"},null,null,null,{"$f":"+'Cover Page'!$B$33","v":"Lakeside EFW Ltd"}]
[]
["Monitoring of Carbon Monoxide (half hourly)",null,null,"Whole Installation",null,null,"See  Notes in Cell Q3",null,null,{"$f":"+A3","v":"Monitoring of Carbon Monoxide (half hourly)"},null,null,null,"Per Combustion Line",null,null,"Notes:"]
[]
["Please complete this tab for your plant if you have 1/2 hourly CO ELVs; otherwise, leave it blank and complete the CO 95% 10 min tab"]
[]
[null,null,null,null,null,null,null,null,null,null,null,null,null,null,null,null,"User to add logic to complete Whole installation, Table A5:G18. From the data in Per Combustion Line, Table J6:O79, subject to No. of lines installed"]
[{"$f":"+'Cover Page'!C39","v":2024},"1/2 Hourly Reference Periods",null,null,"Daily Reference Periods"]
["mg/Nm3","1/2 hourly CO ELV","Monthly mean of half-hourly averages","Highest half- hourly average","Daily CO ELV","Monthly mean of  daily averages","Highest daily average",null,null,{"$f":"+A8","v":2024},"mg/Nm3","Monthly mean of half-hourly averages","Highest half- hourly average","Monthly mean of  daily averages","Highest daily average"]
["Jan",100,null,null,50,null,null,null,null,"A1","Jan"]
["Feb",{"$f":"+B10","v":100},null,null,{"$f":"+E10","v":50},null,null,null,null,null,"Feb"]
["Mar",{"$f":"+B11","v":100},null,null,{"$f":"+E11","v":50},null,null,null,null,null,"Mar",null,null,null,null,null,"Whole Installation table A5:G18:"]
["Apr",100,null,null,50,null,null,null,null,null,"Apr",null,null,null,null,null,"Mean: for 1/2 hourly and daily periods calculate mean of values across all operational combustion lines for the month"]
["May",100,null,null,50,null,null,null,null,null,"May"]
["Jun",100,null,null,50,null,null,null,null,null,"Jun"]
["Jul",100,null,null,50,null,null,null,null,null,"Jul",null,null,null,null,null,"Maximum: for 1/2 hourly and daily periods use the highest value across all operational combustion lines for the month"]
["Aug",100,null,null,50,null,null,null,null,null,"Aug"]
["Sep",100,null,null,50,null,null,null,null,null,"Sep"]
["Oct",100,null,null,50,null,null,null,null,null,"Oct"]
["Nov",100,null,null,50,null,null,null,null,null,"Nov"]
["Dec",100,null,null,50,null,null,null,null,null,"Dec"]
[null,null,null,null,null,null,null,null,null,null,"Annual",{"$f":"AVERAGE(L10:L21)","v":{"$error":"#DIV/0!"}},{"$f":"MAX(M10:M21)","v":0},{"$f":"AVERAGE(N10:N21)","v":{"$error":"#DIV/0!"}},{"$f":"MAX(O10:O21)","v":0}]
[]
[null,null,null,null,null,null,null,null,null,{"$f":"+A8","v":2024},"mg/Nm3","Monthly mean of half-hourly averages","Highest half- hourly average","Monthly mean of  daily averages","Highest daily average"]
[null,null,null,null,null,null,null,null,null,"A2","Jan"]
[null,null,null,null,null,null,null,null,null,null,"Feb"]
[null,null,null,null,null,null,null,null,null,null,"Mar"]
[null,null,null,null,null,null,null,null,null,null,"Apr"]
[null,null,null,null,null,null,null,null,null,null,"May"]
[null,null,null,null,null,null,null,null,null,null,"Jun"]
[null,null,null,null,null,null,null,null,null,null,"Jul"]
[null,null,null,null,null,null,null,null,null,null,"Aug"]
[null,null,null,null,null,null,null,null,null,null,"Sep"]
[null,null,null,null,null,null,null,null,null,null,"Oct"]
[null,null,null,null,null,null,null,null,null,null,"Nov"]
[null,null,null,null,null,null,null,null,null,null,"Dec"]
[null,null,null,null,null,null,null,null,null,null,"Annual",{"$f":"AVERAGE(L25:L36)","v":{"$error":"#DIV/0!"}},{"$f":"MAX(M25:M36)","v":0},{"$f":"AVERAGE(N25:N36)","v":{"$error":"#DIV/0!"}},{"$f":"MAX(O25:O36)","v":0}]
[]
[null,null,null,null,null,null,null,null,null,{"$f":"+A8","v":2024},"mg/Nm3","Monthly mean of half-hourly averages","Highest half- hourly average","Monthly mean of  daily averages","Highest daily average"]
[null,null,null,null,null,null,null,null,null,"A3","Jan"]
[null,null,null,null,null,null,null,null,null,null,"Feb"]
[null,null,null,null,null,null,null,null,null,null,"Mar"]
[null,null,null,null,null,null,null,null,null,null,"Apr"]
[null,null,null,null,null,null,null,null,null,null,"May"]
[null,null,null,null,null,null,null,null,null,null,"Jun"]
[null,null,null,null,null,null,null,null,null,null,"Jul"]
[null,null,null,null,null,null,null,null,null,null,"Aug"]
[null,null,null,null,null,null,null,null,null,null,"Sep"]
[null,null,null,null,null,null,null,null,null,null,"Oct"]
[null,null,null,null,null,null,null,null,null,null,"Nov"]
["Comments :",null,null,null,null,null,null,null,null,null,"Dec"]
[null,null,null,null,null,null,null,null,null,null,"Annual",{"$f":"AVERAGE(L40:L51)","v":{"$error":"#DIV/0!"}},{"$f":"MAX(M40:M51)","v":0},{"$f":"AVERAGE(N40:N51)","v":{"$error":"#DIV/0!"}},{"$f":"MAX(O40:O51)","v":0}]
[]
[null,null,null,null,null,null,null,null,null,{"$f":"+A8","v":2024},"mg/Nm3","Monthly mean of half-hourly averages","Highest half- hourly average","Monthly mean of  daily averages","Highest daily average"]
[null,null,null,null,null,null,null,null,null,"A4","Jan"]
[null,null,null,null,null,null,null,null,null,null,"Feb"]
[null,null,null,null,null,null,null,null,null,null,"Mar"]
[null,null,null,null,null,null,null,null,null,null,"Apr"]
[null,null,null,null,null,null,null,null,null,null,"May"]
[null,null,null,null,null,null,null,null,null,null,"Jun"]
[null,null,null,null,null,null,null,null,null,null,"Jul"]
[null,null,null,null,null,null,null,null,null,null,"Aug"]
[null,null,null,null,null,null,null,null,null,null,"Sep"]
[null,null,null,null,null,null,null,null,null,null,"Oct"]
[null,null,null,null,null,null,null,null,null,null,"Nov"]
[null,null,null,null,null,null,null,null,null,null,"Dec"]
[null,null,null,null,null,null,null,null,null,null,"Annual",{"$f":"AVERAGE(L55:L66)","v":{"$error":"#DIV/0!"}},{"$f":"MAX(M55:M66)","v":0},{"$f":"AVERAGE(N55:N66)","v":{"$error":"#DIV/0!"}},{"$f":"MAX(O55:O66)","v":0}]
[]
[null,null,null,null,null,null,null,null,null,{"$f":"+A8","v":2024},"mg/Nm3","Monthly mean of half-hourly averages","Highest half- hourly average","Monthly mean of  daily averages","Highest daily average"]
[null,null,null,null,null,null,null,null,null,"A5","Jan"]
[null,null,null,null,null,null,null,null,null,null,"Feb"]
[null,null,null,null,null,null,null,null,null,null,"Mar"]
[null,null,null,null,null,null,null,null,null,null,"Apr"]
[null,null,null,null,null,null,null,null,null,null,"May"]
[null,null,null,null,null,null,null,null,null,null,"Jun"]
[null,null,null,null,null,null,null,null,null,null,"Jul"]
[null,null,null,null,null,null,null,null,null,null,"Aug"]
[null,null,null,null,null,null,null,null,null,null,"Sep"]
[null,null,null,null,null,null,null,null,null,null,"Oct"]
[null,null,null,null,null,null,null,null,null,null,"Nov"]
[null,null,null,null,null,null,null,null,null,null,"Dec"]
[null,null,null,null,null,null,null,null,null,null,"Annual",{"$f":"AVERAGE(L70:L81)","v":{"$error":"#DIV/0!"}},{"$f":"MAX(M70:M81)","v":0},{"$f":"AVERAGE(N70:N81)","v":{"$error":"#DIV/0!"}},{"$f":"MAX(O70:O81)","v":0}]

{"sheet":"CO 95% 10 min","index":21,"n_rows":82,"n_cols":19,"rows_kept":82,"cut":false,"hidden":false,"merged":[[4,0,5,7],[6,18,10,20],[12,18,14,20],[15,18,18,20],[69,10,81,10],[7,1,7,4],[7,5,7,7],[7,10,7,16],[9,10,21,10],[24,10,36,10],[39,10,51,10],[50,0,50,7],[51,0,54,7],[54,10,66,10]]}
[{"$f":"+'Cover Page'!$B$29","v":"Annual Performance Report 2024"},null,null,null,{"$f":"+'Cover Page'!$B$33","v":"Lakeside EFW Ltd"}]
[]
["Monitoring of Carbon Monoxide (10-minute avg)",null,null,null,"Whole Installation",null,null,"See  Notes in Cell S3",null,{"$f":"+A3","v":"Monitoring of Carbon Monoxide (10-minute avg)"},null,null,null,null,"Per Combustion Line",null,"Notes:",null,"Notes:"]
[]
["Please complete this tab for your plant if you have 10-minute average CO ELVs; otherwise, leave it blank and complete the CO 0.5 hourly tab"]
[]
[null,null,null,null,null,null,null,null,null,null,null,null,null,null,null,null,null,null,"User to add logic to complete Whole installation, Table A5:H18. From the data in Per Combustion Line, Table K6:Q79, subject to No. of lines installed"]
[{"$f":"+'Cover Page'!C39","v":2024},"10-minute Reference Periods",null,null,null,"Daily Reference Periods"]
["mg/Nm3","95%ile 10-min avg CO ELV","Highest daily 95%ile 10-min average","Monthly mean of 10-min averages","Highest 10-min average","Daily CO ELV","Monthly mean of  daily averages","Highest daily average",null,null,{"$f":"+A8","v":2024},"mg/Nm3","Highest daily 95%ile 10-min average","Monthly mean of 10-min averages","Highest 10-min average","Monthly mean of  daily averages","Highest daily average"]
["Jan",150,{"$f":"(M10+M25)/2","v":55.875},{"$f":"(N10+N25)/2","v":6.51},706.01,50,{"$f":"(P10+P25)/2","v":6.46},{"$f":"(Q10+Q25)/2","v":16.145},null,null,"A1","Jan",43.38,6.62,625.38,6.52,16.52]
["Feb",{"$f":"+B10","v":150},{"$f":"(M11+M26)/2","v":56.58},6.4850000000000003,586.20000000000005,{"$f":"+F10","v":50},{"$f":"(P11+P26)/2","v":6.4850000000000003},12.31,null,null,null,"Feb",25.03,4.76,526.55999999999995,4.76,8.1999999999999993]
["Mar",{"$f":"+B11","v":150},134.07999999999998,10.324999999999999,822.82999999999993,{"$f":"+F11","v":50},10.33,27.92,null,null,null,"Mar",142.1,8.56,551.12,8.57,28.13,null,"Whole Installation table A5:H18:"]
["Apr",150,137.28,9.1900000000000013,1077.6500000000001,50,9.3349999999999991,19.489999999999998,null,null,null,"Apr",87.65,5.4,347.31,5.3,12.1,null,"Mean: for 10-min and daily periods use average of all operational combustion lines."]
["May",150,78.510000000000005,7.5250000000000004,733.99,50,7.54,18.239999999999998,null,null,null,"May",72.59,6.48,636.47,6.49,15.28]
["Jun",150,78.759999999999991,6.99,831.61500000000001,50,6.8849999999999998,18.559999999999999,null,null,null,"Jun",72.72,6.21,737.61,6.22,14.12]
["Jul",150,78.36,12.62,5101.2299999999996,50,6.31,12.75,null,null,null,"Jul",60.92,4.04,483.49,3.75,8.59,null,"Maximum: for 10-min and daily periods use the highest of all operational combustion lines in any month."]
["Aug",150,69.754999999999995,5.54,579.51,50,5.6050000000000004,10.629999999999999,null,null,null,"Aug",27.45,3.51,407.43,3.64,5.57]
["Sep",150,153.92500000000001,10.32,880.51,50,6.5250000000000004,20.745000000000001,null,null,null,"Sep",115.44,7.57,1166.0999999999999,7.19,33.82]
["Oct",150,56.704999999999998,6.77,1100.595,50,6.71,26.324999999999999,null,null,null,"Oct",48.21,6.5,1789.94,6.4,36.26]
["Nov",150,63.08,6.2249999999999996,743.54499999999996,50,6.2249999999999996,14,null,null,null,"Nov",32.1,4.62,644.29,4.62,10.199999999999999]
["Dec",150,69.47,6.41,691.62,50,6.375,16.164999999999999,null,null,null,"Dec",69.59,6.67,808.97,6.63,16.62]
[null,null,null,null,null,null,null,null,null,null,null,"Annual",{"$f":"AVERAGE(M10:M21)","v":66.431666666666672},null,{"$f":"MAX(O10:O21)","v":1789.94},{"$f":"AVERAGE(P10:P21)","v":5.8408333333333324},{"$f":"MAX(Q10:Q21)","v":36.26}]
[]
[null,null,null,null,null,null,null,null,null,null,{"$f":"+A8","v":2024},"mg/Nm3","Highest daily 95%ile 10-min average","Monthly mean of 10-min averages","Highest 10-min average","Monthly mean of  daily averages","Highest daily average"]
[null,null,null,null,null,null,null,null,null,null,"A2","Jan",68.37,6.4,786.64,6.4,15.77]
[null,null,null,null,null,null,null,null,null,null,null,"Feb",88.13,8.2100000000000009,645.84,8.2100000000000009,16.420000000000002]
[null,null,null,null,null,null,null,null,null,null,null,"Mar",126.06,12.09,1094.54,12.09,27.71]
[null,null,null,null,null,null,null,null,null,null,null,"Apr",186.91,12.98,1807.99,13.37,26.88]
[null,null,null,null,null,null,null,null,null,null,null,"May",84.43,8.57,831.51,8.59,21.2]
[null,null,null,null,null,null,null,null,null,null,null,"Jun",84.8,7.77,925.62,7.55,23]
[null,null,null,null,null,null,null,null,null,null,null,"Jul",95.8,21.2,9718.9699999999993,8.8699999999999992,16.91]
[null,null,null,null,null,null,null,null,null,null,null,"Aug",112.06,7.57,751.59,7.57,15.69]
[null,null,null,null,null,null,null,null,null,null,null,"Sep",192.41,13.07,594.91999999999996,5.86,7.67]
[null,null,null,null,null,null,null,null,null,null,null,"Oct",65.2,7.04,411.25,7.02,16.39]
[null,null,null,null,null,null,null,null,null,null,null,"Nov",94.06,7.83,842.8,7.83,17.8]
[null,null,null,null,null,null,null,null,null,null,null,"Dec",69.349999999999994,6.15,574.27,6.12,15.71]
[null,null,null,null,null,null,null,null,null,null,null,"Annual",{"$f":"AVERAGE(M25:M36)","v":105.63166666666666},null,{"$f":"MAX(O25:O36)","v":9718.9699999999993},{"$f":"AVERAGE(P25:P36)","v":8.2900000000000009},{"$f":"MAX(Q25:Q36)","v":27.71}]
[]
[null,null,null,null,null,null,null,null,null,null,{"$f":"+A8","v":2024},"mg/Nm3","Highest daily 95%ile 10-min average","Monthly mean of 10-min averages","Highest 10-min average","Monthly mean of  daily averages","Highest daily average"]
[null,null,null,null,null,null,null,null,null,null,"A3","Jan"]
[null,null,null,null,null,null,null,null,null,null,null,"Feb"]
[null,null,null,null,null,null,null,null,null,null,null,"Mar"]
[null,null,null,null,null,null,null,null,null,null,null,"Apr"]
[null,null,null,null,null,null,null,null,null,null,null,"May"]
[null,null,null,null,null,null,null,null,null,null,null,"Jun"]
[null,null,null,null,null,null,null,null,null,null,null,"Jul"]
[null,null,null,null,null,null,null,null,null,null,null,"Aug"]
[null,null,null,null,null,null,null,null,null,null,null,"Sep"]
[null,null,null,null,null,null,null,null,null,null,null,"Oct"]
[null,null,null,null,null,null,null,null,null,null,null,"Nov"]
["Comments :",null,null,null,null,null,null,null,null,null,null,"Dec"]
["Environment Agency explanatory note: The 10-minute average ELV is based on the “95th percentile”. In this case this means that 95% of the 10 minute averages in the relevant 24-hour period (i.e. 137) must be below 150 mg/Nm3, and 5% (i.e. 7) are allowed to be any value above 150 mg/Nm3. Whilst we expect operators to minimise CO emissions at all times, it is perfectly acceptable for the value of the maximum 10-minute average to be above 150 mg/Nm3, provided the 95th percentile ELV has been met for that period. ",null,null,null,null,null,null,null,null,null,null,"Annual",{"$f":"AVERAGE(M40:M51)","v":{"$error":"#DIV/0!"}},null,{"$f":"MAX(O40:O51)","v":0},{"$f":"AVERAGE(P40:P51)","v":{"$error":"#DIV/0!"}},{"$f":"MAX(Q40:Q51)","v":0}]
[]
[null,null,null,null,null,null,null,null,null,null,{"$f":"+A8","v":2024},"mg/Nm3","Highest daily 95%ile 10-min average","Monthly mean of 10-min averages","Highest 10-min average","Monthly mean of  daily averages","Highest daily average"]
[null,null,null,null,null,null,null,null,null,null,"A4","Jan"]
[null,null,null,null,null,null,null,null,null,null,null,"Feb"]
[null,null,null,null,null,null,null,null,null,null,null,"Mar"]
[null,null,null,null,null,null,null,null,null,null,null,"Apr"]
[null,null,null,null,null,null,null,null,null,null,null,"May"]
[null,null,null,null,null,null,null,null,null,null,null,"Jun"]
[null,null,null,null,null,null,null,null,null,null,null,"Jul"]
[null,null,null,null,null,null,null,null,null,null,null,"Aug"]
[null,null,null,null,null,null,null,null,null,null,null,"Sep"]
[null,null,null,null,null,null,null,null,null,null,null,"Oct"]
[null,null,null,null,null,null,null,null,null,null,null,"Nov"]
[null,null,null,null,null,null,null,null,null,null,null,"Dec"]
[null,null,null,null,null,null,null,null,null,null,null,"Annual",{"$f":"AVERAGE(M55:M66)","v":{"$error":"#DIV/0!"}},null,{"$f":"MAX(O55:O66)","v":0},{"$f":"AVERAGE(P55:P66)","v":{"$error":"#DIV/0!"}},{"$f":"MAX(Q55:Q66)","v":0}]
[]
[null,null,null,null,null,null,null,null,null,null,{"$f":"+A8","v":2024},"mg/Nm3","95%ile 10-min avg maximum","Monthly CO 10-min avg mean","10-min avg maximum","Monthly daily mean","Monthly daily maximum"]
[null,null,null,null,null,null,null,null,null,null,"A5","Jan"]
[null,null,null,null,null,null,null,null,null,null,null,"Feb"]
[null,null,null,null,null,null,null,null,null,null,null,"Mar"]
[null,null,null,null,null,null,null,null,null,null,null,"Apr"]
[null,null,null,null,null,null,null,null,null,null,null,"May"]
[null,null,null,null,null,null,null,null,null,null,null,"Jun"]
[null,null,null,null,null,null,null,null,null,null,null,"Jul"]
[null,null,null,null,null,null,null,null,null,null,null,"Aug"]
[null,null,null,null,null,null,null,null,null,null,null,"Sep"]
[null,null,null,null,null,null,null,null,null,null,null,"Oct"]
[null,null,null,null,null,null,null,null,null,null,null,"Nov"]
[null,null,null,null,null,null,null,null,null,null,null,"Dec"]
[null,null,null,null,null,null,null,null,null,null,null,"Annual",{"$f":"AVERAGE(M70:M81)","v":{"$error":"#DIV/0!"}},null,{"$f":"MAX(O70:O81)","v":0},{"$f":"AVERAGE(P70:P81)","v":{"$error":"#DIV/0!"}},{"$f":"MAX(Q70:Q81)","v":0}]

{"sheet":"NH3","index":22,"n_rows":79,"n_cols":17,"rows_kept":79,"cut":false,"hidden":false,"merged":[[3,16,7,18],[9,16,11,18],[12,16,15,18],[66,9,78,9],[4,1,4,3],[4,4,4,6],[4,9,4,14],[6,9,18,9],[21,9,33,9],[36,9,48,9],[47,0,47,6],[48,0,51,6],[51,9,63,9],[18,4,18,6]]}
[{"$f":"+'Cover Page'!$B$29","v":"Annual Performance Report 2024"},null,null,null,{"$f":"+'Cover Page'!$B$33","v":"Lakeside EFW Ltd"}]
[]
["Monitoring of Ammnonia emissions ",null,null,"Whole Installation",null,null,"See  Notes in Cell Q3",null,null,{"$f":"+A3","v":"Monitoring of Ammnonia emissions "},null,null,null,"Per Combustion Line",null,null,"Notes:"]
[null,null,null,null,null,null,null,null,null,null,null,null,null,null,null,null,"User to add logic to complete Whole installation, Table A5:G18. From the data in Per Combustion Line, Table J6:O79, subject to No. of lines installed"]
[{"$f":"+'Cover Page'!C39","v":2024},"1/2 Hourly Reference Periods",null,null,"Daily Reference Periods"]
["mg/Nm3","1/2 hourly NH3 ELV","Monthly mean of half-hourly averages","Highest half- hourly average","Daily NH3 ELV","Monthly mean of  daily averages","Highest daily average",null,null,{"$f":"+A5","v":2024},"mg/Nm3","Monthly mean of half-hourly averages","Highest half- hourly average","Monthly mean of  daily averages","Highest daily average"]
["Jan","None",{"$f":"(L7+L22)/2","v":8.4999999999999992E-2},{"$f":"(M7+M22)/2","v":2.4350000000000001},15,{"$f":"(N7+N22)/2","v":0.08},{"$f":"(O7+O22)/2","v":0.315},null,null,"A1","Jan",0.06,4.28,0.05,0.3]
["Feb",{"$f":"+B7","v":"None"},{"$f":"(L8+L23)/2","v":0.05},1.56,15,{"$f":"(N8+N23)/2","v":0.05},0.255,null,null,null,"Feb",-0.03,2.25,-0.03,0.19]
["Mar",{"$f":"+B8","v":"None"},0.64,22.745000000000001,15,0.64,4.25,null,null,null,"Mar",0.31,14.14,0.31,3.65,null,"Whole Installation table A5:G18:"]
["Apr","None",0.7,26.835000000000001,15,0.63500000000000001,5.46,null,null,null,"Apr",0.86,19.46,0.74,6.25,null,"Mean: for 1/2 hourly and daily periods calculate mean of values across all operational combustion lines for the month"]
["May","None",0.26,31.23,15,0.26500000000000001,7.1199999999999992,null,null,null,"May",-0.03,8.93,-0.03,1.1299999999999999]
["Jun","None",0.245,16.5,15,0.22999999999999998,1.9349999999999998,null,null,null,"Jun",-0.01,10.07,-0.01,0.86]
["Jul","None",0.45500000000000002,22.734999999999999,15,0.33499999999999996,2.9400000000000004,null,null,null,"Jul",0.1,7.58,0.09,2.2400000000000002,null,"Maximum: for 1/2 hourly and daily periods use the highest value across all operational combustion lines for the month"]
["Aug","None",0.30499999999999999,6.69,15,0.30499999999999999,1.01,null,null,null,"Aug",0.19,0.41,0.19,0.25]
["Sep","None",0.6100000000000001,16.190000000000001,15,0.40500000000000003,2.9950000000000001,null,null,null,"Sep",0.56000000000000005,19.75,0.51,5.65]
["Oct","None",1.33,172.42499999999998,15,1.31,7.4950000000000001,null,null,null,"Oct",0.5,25.7,0.44,4.2699999999999996]
["Nov","None",0.68500000000000005,37.94,15,0.68500000000000005,6.7549999999999999,null,null,null,"Nov",0.81,47.15,0.81,8.92]
["Dec","None",0.31,5.8800000000000008,15,0.29500000000000004,0.625,null,null,null,"Dec",0.22,4.03,0.2,0.56000000000000005]
[null,null,null,null,null,null,null,null,null,null,"Annual",{"$f":"AVERAGE(L7:L18)","v":0.29499999999999998},{"$f":"MAX(M7:M18)","v":47.15},{"$f":"AVERAGE(N7:N18)","v":0.27250000000000002},{"$f":"MAX(O7:O18)","v":8.92}]
[]
[null,null,null,null,null,null,null,null,null,{"$f":"+A5","v":2024},"mg/Nm3","Monthly mean of half-hourly averages","Highest half- hourly average","Monthly mean of  daily averages","Highest daily average"]
[null,null,null,null,null,null,null,null,null,"A2","Jan",0.11,0.59,0.11,0.33]
[null,null,null,null,null,null,null,null,null,null,"Feb",0.13,0.87,0.13,0.32]
[null,null,null,null,null,null,null,null,null,null,"Mar",0.97,31.35,0.97,4.8499999999999996]
[null,null,null,null,null,null,null,null,null,null,"Apr",0.54,34.21,0.53,4.67]
[null,null,null,null,null,null,null,null,null,null,"May",0.55000000000000004,53.53,0.56000000000000005,13.11]
[null,null,null,null,null,null,null,null,null,null,"Jun",0.5,22.93,0.47,3.01]
[null,null,null,null,null,null,null,null,null,null,"Jul",0.81,37.89,0.57999999999999996,3.64]
[null,null,null,null,null,null,null,null,null,null,"Aug",0.42,12.97,0.42,1.77]
[null,null,null,null,null,null,null,null,null,null,"Sep",0.66,12.63,0.3,0.34]
[null,null,null,null,null,null,null,null,null,null,"Oct",2.16,319.14999999999998,2.1800000000000002,10.72]
[null,null,null,null,null,null,null,null,null,null,"Nov",0.56000000000000005,28.73,0.56000000000000005,4.59]
[null,null,null,null,null,null,null,null,null,null,"Dec",0.4,7.73,0.39,0.69]
[null,null,null,null,null,null,null,null,null,null,"Annual",{"$f":"AVERAGE(L22:L33)","v":0.65083333333333337},{"$f":"MAX(M22:M33)","v":319.14999999999998},{"$f":"AVERAGE(N22:N33)","v":0.6},{"$f":"MAX(O22:O33)","v":13.11}]
[]
[null,null,null,null,null,null,null,null,null,{"$f":"+A5","v":2024},"mg/Nm3","Monthly mean of half-hourly averages","Highest half- hourly average","Monthly mean of  daily averages","Highest daily average"]
[null,null,null,null,null,null,null,null,null,"A3","Jan"]
[null,null,null,null,null,null,null,null,null,null,"Feb"]
[null,null,null,null,null,null,null,null,null,null,"Mar"]
[null,null,null,null,null,null,null,null,null,null,"Apr"]
[null,null,null,null,null,null,null,null,null,null,"May"]
[null,null,null,null,null,null,null,null,null,null,"Jun"]
[null,null,null,null,null,null,null,null,null,null,"Jul"]
[null,null,null,null,null,null,null,null,null,null,"Aug"]
[null,null,null,null,null,null,null,null,null,null,"Sep"]
[null,null,null,null,null,null,null,null,null,null,"Oct"]
[null,null,null,null,null,null,null,null,null,null,"Nov"]
["Comments :",null,null,null,null,null,null,null,null,null,"Dec"]
["An indicated ELV value of zero in the table above means that no ammonia limit is/was set in the permit.  ",null,null,null,null,null,null,null,null,null,"Annual",{"$f":"AVERAGE(L37:L48)","v":{"$error":"#DIV/0!"}},{"$f":"MAX(M37:M48)","v":0},{"$f":"AVERAGE(N37:N48)","v":{"$error":"#DIV/0!"}},{"$f":"MAX(O37:O48)","v":0}]
[]
[null,null,null,null,null,null,null,null,null,{"$f":"+A5","v":2024},"mg/Nm3","Monthly mean of half-hourly averages","Highest half- hourly average","Monthly mean of  daily averages","Highest daily average"]
[null,null,null,null,null,null,null,null,null,"A4","Jan"]
[null,null,null,null,null,null,null,null,null,null,"Feb"]
[null,null,null,null,null,null,null,null,null,null,"Mar"]
[null,null,null,null,null,null,null,null,null,null,"Apr"]
[null,null,null,null,null,null,null,null,null,null,"May"]
[null,null,null,null,null,null,null,null,null,null,"Jun"]
[null,null,null,null,null,null,null,null,null,null,"Jul"]
[null,null,null,null,null,null,null,null,null,null,"Aug"]
[null,null,null,null,null,null,null,null,null,null,"Sep"]
[null,null,null,null,null,null,null,null,null,null,"Oct"]
[null,null,null,null,null,null,null,null,null,null,"Nov"]
[null,null,null,null,null,null,null,null,null,null,"Dec"]
[null,null,null,null,null,null,null,null,null,null,"Annual",{"$f":"AVERAGE(L52:L63)","v":{"$error":"#DIV/0!"}},{"$f":"MAX(M52:M63)","v":0},{"$f":"AVERAGE(N52:N63)","v":{"$error":"#DIV/0!"}},{"$f":"MAX(O52:O63)","v":0}]
[]
[null,null,null,null,null,null,null,null,null,{"$f":"+A5","v":2024},"mg/Nm3","Monthly mean of half-hourly averages","Highest half- hourly average","Monthly mean of  daily averages","Highest daily average"]
[null,null,null,null,null,null,null,null,null,"A5","Jan"]
[null,null,null,null,null,null,null,null,null,null,"Feb"]
[null,null,null,null,null,null,null,null,null,null,"Mar"]
[null,null,null,null,null,null,null,null,null,null,"Apr"]
[null,null,null,null,null,null,null,null,null,null,"May"]
[null,null,null,null,null,null,null,null,null,null,"Jun"]
[null,null,null,null,null,null,null,null,null,null,"Jul"]
[null,null,null,null,null,null,null,null,null,null,"Aug"]
[null,null,null,null,null,null,null,null,null,null,"Sep"]
[null,null,null,null,null,null,null,null,null,null,"Oct"]
[null,null,null,null,null,null,null,null,null,null,"Nov"]
[null,null,null,null,null,null,null,null,null,null,"Dec"]
[null,null,null,null,null,null,null,null,null,null,"Annual",{"$f":"AVERAGE(L67:L78)","v":{"$error":"#DIV/0!"}},{"$f":"MAX(M67:M78)","v":0},{"$f":"AVERAGE(N67:N78)","v":{"$error":"#DIV/0!"}},{"$f":"MAX(O67:O78)","v":0}]

{"sheet":"Template changes log","index":23,"n_rows":18,"n_cols":3,"rows_kept":18,"cut":false,"hidden":false,"merged":[]}
["Log of changes to template (Environment Agency use only)"]
[]
["Date","Description of change","New version number and date"]
["2024-01-16","Air (periodic) tab: corrected default O2 reference from 6 to 11% ","Version 23.5a (for incinerators) - 16/01/2024"]
["2024-09-23","Air (periodic) tab: corrected symbol for Thallium to Tl"]
["2024-09-23","Air (periodic) tab: removed last year's references to different emission limit values applying from 03/12/23 and updated all relevant ELVs"]
["2024-09-23","Tabs for continuously monitored pollutants (HCl, SO2 etc.): changed terminology in table headings to improve clarity"]
["2024-09-23","Tabs for continuously monitored pollutants (HCl, SO2 etc.): removed last year's references to different emission limit values applying from 03/12/23 and updated all relevant ELVs"]
["2024-09-23","Perf 1 tab: updated formula for water usage to report m3 rather than litres and corrected error with formula copying operator name"]
["2024-09-23","Operational Summary tab: table added on start-ups and shut-downs"]
["2024-09-23","Operational Summary tab: table added on dioxins and mercury protocols"]
["2024-09-23","Operational Summary tab: table added on AST, QAL 2 and calibration functions"]
["2024-09-23","CO2 N2O tab: various changes made to notes to reflect the fact that most plants should now have calibrated CEMS and flow meters + some have C14 samplers and more up to date industry data","Version 24a (for incinerators) - 23/09/24"]
["2024-11-08","CO2 N2O tab: Changed the N2O CO2 equivalence factor from 298 to 265 in line with recently updated government greenhouse gas figures: https://www.gov.uk/government/publications/greenhouse-gas-reporting-conversion-factors-2024"]
["2024-11-08","CO2 N2O tab: Added an additional requirement for municipal EfW plants to state the yearly average biogenic percentage of the waste by mass, and reference to a document which sets out a methodology for calculating NCV of waste from the results of C14 sampling."]
["2024-11-08","Permit Compliance tab: Two additional columns added + explanatory notes to the table entitled \"Summary of non-compliances under the permit\" to allow CCS scores to be stated where relevant. "]
["2024-11-08","Residue Quality tab: Note added explaining application of TOC and LOI limits and asking operators to report both metrics where measured. ","Version 24.1a (for incinerators) - 08/11/24"]
["2024-11-27","Operational Summary tab: Tables on mercury & dioxins protocols and ASTs removed (covered instead by new tables added to updated Air 9 periodic monitoring form)","Version 24.2a (for incinerators) - 27/11/24"]